Department,Entity,Date of Payment,Expense Type,Expense Area,Supplier,Transaction Number,Amount,Description,Supplier Post Code,Supplier Type
"Department for Business, Energy and Industrial Strategy","Department for Business, Energy and Industrial Strategy",14 August 2020,Central Telecommunications Services,"Corporate Services - Digital, Data & Technology",Vodafone Ltd,118722,0.62,MF Devolved Admin-Central Telecommunications Services,RG14 1LA,VENDOR
"Department for Business, Energy and Industrial Strategy","Department for Business, Energy and Industrial Strategy",13 August 2020,Application Support Service,"Corporate Services - Digital, Data & Technology",CGI IT UK LTD,134506,-333.73,FCS Devolved Admin-Application Support Service,EC3M 3BY,VENDOR
"Department for Business, Energy and Industrial Strategy","Department for Business, Energy and Industrial Strategy",17 August 2020,Application Support Service,"Corporate Services - Digital, Data & Technology",CGI IT UK LTD,134525,-333.73,FCS Devolved Admin-Application Support Service,EC3M 3BY,VENDOR
"Department for Business, Energy and Industrial Strategy","Department for Business, Energy and Industrial Strategy",13 August 2020,Application Support Service,"Corporate Services - Digital, Data & Technology",CGI IT UK LTD,134627,-333.73,FCS Devolved Admin-Application Support Service,EC3M 3BY,VENDOR
"Department for Business, Energy and Industrial Strategy","Department for Business, Energy and Industrial Strategy",14 August 2020,Central Telecommunications Services,"Corporate Services - Digital, Data & Technology",SKY UK LTD,247936,120.60,MF Devolved Admin-Central Telecommunications Services,EH54 7HH,VENDOR
"Department for Business, Energy and Industrial Strategy","Department for Business, Energy and Industrial Strategy",14 August 2020,Central Telecommunications Services,"Corporate Services - Digital, Data & Technology",SKY UK LTD,247944,2427.74,MF Devolved Admin-Central Telecommunications Services,EH54 7HH,VENDOR
"Department for Business, Energy and Industrial Strategy","Department for Business, Energy and Industrial Strategy",17 August 2020,Learning and Dev - CS Skills,Corporate Services - Human Resources,KPMG LLP,249009,2500.00,MF Non Devolved Admin-Learning and Dev - CS Skills,WD17 1DE,VENDOR
"Department for Business, Energy and Industrial Strategy","Department for Business, Energy and Industrial Strategy",17 August 2020,Learning and Dev - CS Skills,Corporate Services - Human Resources,KPMG LLP,250024,325.00,MF Non Devolved Admin-Learning and Dev - CS Skills,WD17 1DE,VENDOR
"Department for Business, Energy and Industrial Strategy","Department for Business, Energy and Industrial Strategy",17 August 2020,Learning and Dev - CS Skills,Corporate Services - Human Resources,KPMG LLP,250025,325.00,MF Non Devolved Admin-Learning and Dev - CS Skills,WD17 1DE,VENDOR
"Department for Business, Energy and Industrial Strategy","Department for Business, Energy and Industrial Strategy",17 August 2020,Learning and Dev - CS Skills,Corporate Services - Human Resources,KPMG LLP,250026,325.00,MF Non Devolved Admin-Learning and Dev - CS Skills,WD17 1DE,VENDOR
"Department for Business, Energy and Industrial Strategy","Department for Business, Energy and Industrial Strategy",17 August 2020,Learning and Dev - CS Skills,Corporate Services - Human Resources,KPMG LLP,250027,299.00,MF Non Devolved Admin-Learning and Dev - CS Skills,WD17 1DE,VENDOR
"Department for Business, Energy and Industrial Strategy","Department for Business, Energy and Industrial Strategy",17 August 2020,Learning and Dev - CS Skills,Corporate Services - Human Resources,KPMG LLP,250029,317.00,MF Non Devolved Admin-Learning and Dev - CS Skills,WD17 1DE,VENDOR
"Department for Business, Energy and Industrial Strategy","Department for Business, Energy and Industrial Strategy",17 August 2020,Learning and Dev - CS Skills,Corporate Services - Human Resources,KPMG LLP,250030,357.00,MF Non Devolved Admin-Learning and Dev - CS Skills,WD17 1DE,VENDOR
"Department for Business, Energy and Industrial Strategy","Department for Business, Energy and Industrial Strategy",17 August 2020,Training And Development Expenditure,Corporate Services - Human Resources,KPMG LLP,250030,618.00,MF Devolved Admin-Training And Development Expenditure,WD17 1DE,VENDOR
"Department for Business, Energy and Industrial Strategy","Department for Business, Energy and Industrial Strategy",20 August 2020,Other IT Consultancy,Corporate Services - Organisational Development,FCO SERVICES,251760,-2304.02,Cirrus-Other IT Consultancy,MK19 7BH,WGA ONLY
"Department for Business, Energy and Industrial Strategy","Department for Business, Energy and Industrial Strategy",17 August 2020,Training And Development Expenditure,Corporate Services - Human Resources,KPMG LLP,261935,532.00,MF Devolved Admin-Training And Development Expenditure,WD17 1DE,VENDOR
"Department for Business, Energy and Industrial Strategy","Department for Business, Energy and Industrial Strategy",17 August 2020,Training And Development Expenditure,Corporate Services - Human Resources,KPMG LLP,261935,633.00,MF Devolved Admin-Training And Development Expenditure,WD17 1DE,VENDOR
"Department for Business, Energy and Industrial Strategy","Department for Business, Energy and Industrial Strategy",14 August 2020,Telecoms,Corporate Services - Commercial & Operations,BRITISH TELECOMMUNICATIONS plc (BT),290919,40.00,FCS Devolved Admin-Telecoms,DH98 1BT,VENDOR
"Department for Business, Energy and Industrial Strategy","Department for Business, Energy and Industrial Strategy",14 August 2020,Telecoms,Corporate Services - Commercial & Operations,BRITISH TELECOMMUNICATIONS plc (BT),290919,58.66,FCS Devolved Admin-Telecoms,DH98 1BT,VENDOR
"Department for Business, Energy and Industrial Strategy","Department for Business, Energy and Industrial Strategy",20 August 2020,Central Telecommunications Services,"Industrial Strategy, Science and Innovation - Business Growth",LoopUP Ltd,307262,-660.00,MF Devolved Admin-Central Telecommunications Services,E2 8DP,VENDOR
"Department for Business, Energy and Industrial Strategy","Department for Business, Energy and Industrial Strategy",10 August 2020,Other IT Consultancy,"Corporate Services - Digital, Data & Technology",CGI IT UK LTD,320810,-11265.60,FCS Devolved Admin-Other IT Consultancy,EC3M 3BY,VENDOR
"Department for Business, Energy and Industrial Strategy","Department for Business, Energy and Industrial Strategy",14 August 2020,Legal Services and Advice Agency,Market Frameworks - Office for Product Safety and Standards,TLT LLP,328957,531.75,OPSS: National Capacity Organisational Cross Cutting-Legal Services and Advice Agency,BS1 6TP,VENDOR
"Department for Business, Energy and Industrial Strategy","Department for Business, Energy and Industrial Strategy",12 August 2020,Training And Development Expenditure,Corporate Services - Human Resources,THE WHITEHALL AND INDUSTRY GROUP,334567,-7412.00,MF Non Devolved Admin-Training And Development Expenditure,SW1H 9EX,VENDOR
"Department for Business, Energy and Industrial Strategy","Department for Business, Energy and Industrial Strategy",12 August 2020,Training And Development Expenditure,Corporate Services - Human Resources,THE WHITEHALL AND INDUSTRY GROUP,334567,15137.60,MF Non Devolved Admin-Training And Development Expenditure,SW1H 9EX,VENDOR
"Department for Business, Energy and Industrial Strategy","Department for Business, Energy and Industrial Strategy",20 August 2020,Training And Development Expenditure,"Industrial Strategy, Science and Innovation - Business Growth",LoopUP Ltd,338755,102.00,MF Devolved Admin-Training And Development Expenditure,E2 8DP,VENDOR
"Department for Business, Energy and Industrial Strategy","Department for Business, Energy and Industrial Strategy",06 August 2020,Hire of Conference Facilities,Corporate Services - Commercial & Operations,CHURCH HOUSE CONFERENCE CENTRE LTD,340695,220.80,MF Devolved Admin-Hire of Conference Facilities,SW1P 3NZ,VENDOR
"Department for Business, Energy and Industrial Strategy","Department for Business, Energy and Industrial Strategy",20 August 2020,Economic Consultancy & Research,Market Frameworks - Office of Manpower Economics,INCOMES DATA RESEARCH LTD,345305,6797.50,MF Devolved Admin-Economic Consultancy & Research,WC2H 9JQ,VENDOR
"Department for Business, Energy and Industrial Strategy","Department for Business, Energy and Industrial Strategy",11 August 2020,R & D Outsourced Other,Energy Transformation and Clean Growth - Science and Innovation,Office for National Statistics,350024,30110.00,Innovation Delivery SMART Systems and Integration-R & D Outsourced Other,NP10 8XG,WGA ONLY
"Department for Business, Energy and Industrial Strategy","Department for Business, Energy and Industrial Strategy",10 August 2020,Learning and Dev - CS Skills,Business Sectors - Office for Life Sciences,ABBEY COMMUNITY ASSOCIATION LTD (ABBEY COMMUNITY SERVICES LTD),351202,97.64,MF Devolved Admin-Learning and Dev - CS Skills,SW1P 3BU,VENDOR
"Department for Business, Energy and Industrial Strategy","Department for Business, Energy and Industrial Strategy",06 August 2020,R & D Current Grants to Central Government,"Industrial Strategy, Science and Innovation - International Science and Innovation",Foreign and Commonwealth Office (FCO),353560,54.34,NEWTON FUND - Brazil-R & D Current Grants to Central Government,MK10 1PX,WGA ONLY
"Department for Business, Energy and Industrial Strategy","Department for Business, Energy and Industrial Strategy",06 August 2020,R & D Current Grants to Central Government,"Industrial Strategy, Science and Innovation - International Science and Innovation",Foreign and Commonwealth Office (FCO),353562,4.25,Newton Fund - Jordan-R & D Current Grants to Central Government,MK10 1PX,WGA ONLY
"Department for Business, Energy and Industrial Strategy","Department for Business, Energy and Industrial Strategy",06 August 2020,R & D Current Grants to Central Government,"Industrial Strategy, Science and Innovation - International Science and Innovation",Foreign and Commonwealth Office (FCO),353563,4.25,Newton Fund - Jordan-R & D Current Grants to Central Government,MK10 1PX,WGA ONLY
"Department for Business, Energy and Industrial Strategy","Department for Business, Energy and Industrial Strategy",06 August 2020,R & D Current Grants to Central Government,"Industrial Strategy, Science and Innovation - International Science and Innovation",Foreign and Commonwealth Office (FCO),353564,17.19,Newton Fund - Peru-R & D Current Grants to Central Government,MK10 1PX,WGA ONLY
"Department for Business, Energy and Industrial Strategy","Department for Business, Energy and Industrial Strategy",06 August 2020,R & D Current Grants to Central Government,"Industrial Strategy, Science and Innovation - International Science and Innovation",Foreign and Commonwealth Office (FCO),353565,75.66,Newton Fund - Peru-R & D Current Grants to Central Government,MK10 1PX,WGA ONLY
"Department for Business, Energy and Industrial Strategy","Department for Business, Energy and Industrial Strategy",06 August 2020,R & D Current Grants to Central Government,"Industrial Strategy, Science and Innovation - International Science and Innovation",Foreign and Commonwealth Office (FCO),353566,127.36,Newton Fund - Peru-R & D Current Grants to Central Government,MK10 1PX,WGA ONLY
"Department for Business, Energy and Industrial Strategy","Department for Business, Energy and Industrial Strategy",06 August 2020,R & D Current Grants to Central Government,"Industrial Strategy, Science and Innovation - International Science and Innovation",Foreign and Commonwealth Office (FCO),353567,287.90,Newton Fund - Peru-R & D Current Grants to Central Government,MK10 1PX,WGA ONLY
"Department for Business, Energy and Industrial Strategy","Department for Business, Energy and Industrial Strategy",06 August 2020,R & D Current Grants to Central Government,"Industrial Strategy, Science and Innovation - International Science and Innovation",Foreign and Commonwealth Office (FCO),353568,85.09,Newton Fund - Jordan-R & D Current Grants to Central Government,MK10 1PX,WGA ONLY
"Department for Business, Energy and Industrial Strategy","Department for Business, Energy and Industrial Strategy",06 August 2020,R & D Current Grants to Central Government,"Industrial Strategy, Science and Innovation - International Science and Innovation",Foreign and Commonwealth Office (FCO),353569,85.09,Newton Fund - Jordan-R & D Current Grants to Central Government,MK10 1PX,WGA ONLY
"Department for Business, Energy and Industrial Strategy","Department for Business, Energy and Industrial Strategy",06 August 2020,R & D Current Grants to Central Government,"Industrial Strategy, Science and Innovation - International Science and Innovation",Foreign and Commonwealth Office (FCO),353570,8.65,NEWTON FUND - Brazil-R & D Current Grants to Central Government,MK10 1PX,WGA ONLY
"Department for Business, Energy and Industrial Strategy","Department for Business, Energy and Industrial Strategy",06 August 2020,R & D Current Grants to Central Government,"Industrial Strategy, Science and Innovation - International Science and Innovation",Foreign and Commonwealth Office (FCO),353571,4.32,NEWTON FUND - Brazil-R & D Current Grants to Central Government,MK10 1PX,WGA ONLY
"Department for Business, Energy and Industrial Strategy","Department for Business, Energy and Industrial Strategy",06 August 2020,R & D Current Grants to Central Government,"Industrial Strategy, Science and Innovation - International Science and Innovation",Foreign and Commonwealth Office (FCO),353572,130.50,NEWTON FUND - Brazil-R & D Current Grants to Central Government,MK10 1PX,WGA ONLY
"Department for Business, Energy and Industrial Strategy","Department for Business, Energy and Industrial Strategy",06 August 2020,R & D Current Grants to Central Government,"Industrial Strategy, Science and Innovation - International Science and Innovation",Foreign and Commonwealth Office (FCO),353573,226.59,NEWTON FUND - Brazil-R & D Current Grants to Central Government,MK10 1PX,WGA ONLY
"Department for Business, Energy and Industrial Strategy","Department for Business, Energy and Industrial Strategy",06 August 2020,R & D Current Grants to Central Government,"Industrial Strategy, Science and Innovation - International Science and Innovation",Foreign and Commonwealth Office (FCO),353575,8.48,Newton Fund - Peru-R & D Current Grants to Central Government,MK10 1PX,WGA ONLY
"Department for Business, Energy and Industrial Strategy","Department for Business, Energy and Industrial Strategy",06 August 2020,R & D Current Grants to Central Government,"Industrial Strategy, Science and Innovation - International Science and Innovation",Foreign and Commonwealth Office (FCO),353576,142.61,Newton Fund - Kenya-R & D Current Grants to Central Government,MK10 1PX,WGA ONLY
"Department for Business, Energy and Industrial Strategy","Department for Business, Energy and Industrial Strategy",06 August 2020,R & D Current Grants to Central Government,"Industrial Strategy, Science and Innovation - International Science and Innovation",Foreign and Commonwealth Office (FCO),353577,12.90,Newton Fund - Kenya-R & D Current Grants to Central Government,MK10 1PX,WGA ONLY
"Department for Business, Energy and Industrial Strategy","Department for Business, Energy and Industrial Strategy",06 August 2020,R & D Current Grants to Central Government,"Industrial Strategy, Science and Innovation - International Science and Innovation",Foreign and Commonwealth Office (FCO),353578,16.39,Newton Fund - Kenya-R & D Current Grants to Central Government,MK10 1PX,WGA ONLY
"Department for Business, Energy and Industrial Strategy","Department for Business, Energy and Industrial Strategy",06 August 2020,R & D Current Grants to Central Government,"Industrial Strategy, Science and Innovation - International Science and Innovation",Foreign and Commonwealth Office (FCO),353579,331.61,Newton Fund - Kenya-R & D Current Grants to Central Government,MK10 1PX,WGA ONLY
"Department for Business, Energy and Industrial Strategy","Department for Business, Energy and Industrial Strategy",06 August 2020,R & D Current Grants to Central Government,"Industrial Strategy, Science and Innovation - International Science and Innovation",Foreign and Commonwealth Office (FCO),353580,363.24,Newton Fund - Kenya-R & D Current Grants to Central Government,MK10 1PX,WGA ONLY
"Department for Business, Energy and Industrial Strategy","Department for Business, Energy and Industrial Strategy",06 August 2020,R & D Current Grants to Central Government,"Industrial Strategy, Science and Innovation - International Science and Innovation",Foreign and Commonwealth Office (FCO),353581,38.70,NEWTON FUND - Malaysia-R & D Current Grants to Central Government,MK10 1PX,WGA ONLY
"Department for Business, Energy and Industrial Strategy","Department for Business, Energy and Industrial Strategy",06 August 2020,R & D Current Grants to Central Government,"Industrial Strategy, Science and Innovation - International Science and Innovation",Foreign and Commonwealth Office (FCO),353582,420.17,NEWTON FUND - Philippines-R & D Current Grants to Central Government,MK10 1PX,WGA ONLY
"Department for Business, Energy and Industrial Strategy","Department for Business, Energy and Industrial Strategy",06 August 2020,R & D Current Grants to Central Government,"Industrial Strategy, Science and Innovation - International Science and Innovation",Foreign and Commonwealth Office (FCO),353583,707.89,NEWTON FUND - Philippines-R & D Current Grants to Central Government,MK10 1PX,WGA ONLY
"Department for Business, Energy and Industrial Strategy","Department for Business, Energy and Industrial Strategy",06 August 2020,R & D Current Grants to Central Government,"Industrial Strategy, Science and Innovation - International Science and Innovation",Foreign and Commonwealth Office (FCO),353584,37.67,NEWTON FUND - Indonesia-R & D Current Grants to Central Government,MK10 1PX,WGA ONLY
"Department for Business, Energy and Industrial Strategy","Department for Business, Energy and Industrial Strategy",06 August 2020,R & D Current Grants to Central Government,"Industrial Strategy, Science and Innovation - International Science and Innovation",Foreign and Commonwealth Office (FCO),353585,17.20,Newton Fund - Peru-R & D Current Grants to Central Government,MK10 1PX,WGA ONLY
"Department for Business, Energy and Industrial Strategy","Department for Business, Energy and Industrial Strategy",06 August 2020,R & D Current Grants to Central Government,"Industrial Strategy, Science and Innovation - International Science and Innovation",Foreign and Commonwealth Office (FCO),353586,388.97,Newton Fund - Jordan-R & D Current Grants to Central Government,MK10 1PX,WGA ONLY
"Department for Business, Energy and Industrial Strategy","Department for Business, Energy and Industrial Strategy",06 August 2020,R & D Current Grants to Central Government,"Industrial Strategy, Science and Innovation - International Science and Innovation",Foreign and Commonwealth Office (FCO),353588,3.11,NEWTON FUND - Brazil-R & D Current Grants to Central Government,MK10 1PX,WGA ONLY
"Department for Business, Energy and Industrial Strategy","Department for Business, Energy and Industrial Strategy",06 August 2020,R & D Current Grants to Central Government,"Industrial Strategy, Science and Innovation - International Science and Innovation",Foreign and Commonwealth Office (FCO),353589,10.85,NEWTON FUND - Brazil-R & D Current Grants to Central Government,MK10 1PX,WGA ONLY
"Department for Business, Energy and Industrial Strategy","Department for Business, Energy and Industrial Strategy",06 August 2020,R & D Current Grants to Central Government,"Industrial Strategy, Science and Innovation - International Science and Innovation",Foreign and Commonwealth Office (FCO),353590,-275.19,Newton Fund - Peru-R & D Current Grants to Central Government,MK10 1PX,WGA ONLY
"Department for Business, Energy and Industrial Strategy","Department for Business, Energy and Industrial Strategy",06 August 2020,R & D Current Grants to Central Government,"Industrial Strategy, Science and Innovation - International Science and Innovation",Foreign and Commonwealth Office (FCO),353591,-121.74,Newton Fund - Peru-R & D Current Grants to Central Government,MK10 1PX,WGA ONLY
"Department for Business, Energy and Industrial Strategy","Department for Business, Energy and Industrial Strategy",06 August 2020,R & D Current Grants to Central Government,"Industrial Strategy, Science and Innovation - International Science and Innovation",Foreign and Commonwealth Office (FCO),353592,-72.32,Newton Fund - Peru-R & D Current Grants to Central Government,MK10 1PX,WGA ONLY
"Department for Business, Energy and Industrial Strategy","Department for Business, Energy and Industrial Strategy",06 August 2020,R & D Current Grants to Central Government,"Industrial Strategy, Science and Innovation - International Science and Innovation",Foreign and Commonwealth Office (FCO),353593,-16.43,Newton Fund - Peru-R & D Current Grants to Central Government,MK10 1PX,WGA ONLY
"Department for Business, Energy and Industrial Strategy","Department for Business, Energy and Industrial Strategy",11 August 2020,Learning and Dev - CS Skills,Corporate Services - Human Resources,Cabinet Office,353729,180.00,MF Devolved Admin-Learning and Dev - CS Skills,FY5 3FW,WGA ONLY
"Department for Business, Energy and Industrial Strategy","Department for Business, Energy and Industrial Strategy",04 August 2020,Press Cutting Services,Corporate Services - Communications,PRECISE MEDIA MONITORING LTD,354758,1108.62,MF Devolved Admin-Press Cutting Services,EC2M 2QS,VENDOR
"Department for Business, Energy and Industrial Strategy","Department for Business, Energy and Industrial Strategy",04 August 2020,Capital Grants To Public Corporations (PCs),"Corporate Services - Digital, Data & Technology",UK Shared Business Services Limited,355437,3174.77,Transactional Services (TS)-Capital Grants To Public Corporations (PCs),SN2 1FF,VENDOR
"Department for Business, Energy and Industrial Strategy","Department for Business, Energy and Industrial Strategy",05 August 2020,R & D Outsourced Other,Energy Transformation and Clean Growth - Science and Innovation,ELEMENT ENERGY LTD,355540,24472.75,INNOVATION DELIVERY BUILT ENVIRONMENT-R & D Outsourced Other,CB5 8AQ,VENDOR
"Department for Business, Energy and Industrial Strategy","Department for Business, Energy and Industrial Strategy",05 August 2020,R & D Outsourced Other,Energy Transformation and Clean Growth - Science and Innovation,ELEMENT ENERGY LTD,355540,29557.25,INNOVATION DELIVERY BUILT ENVIRONMENT-R & D Outsourced Other,CB5 8AQ,VENDOR
"Department for Business, Energy and Industrial Strategy","Department for Business, Energy and Industrial Strategy",18 August 2020,Purchase of Intangible Software,"Corporate Services - Digital, Data & Technology",Software Box Ltd,355551,-485.96,MF Devolved Admin-Purchase of Intangible Software,YO61 1ET,VENDOR
"Department for Business, Energy and Industrial Strategy","Department for Business, Energy and Industrial Strategy",18 August 2020,Purchase of Intangible Software,"Corporate Services - Digital, Data & Technology",Software Box Ltd,355551,1069.11,MF Devolved Admin-Purchase of Intangible Software,YO61 1ET,VENDOR
"Department for Business, Energy and Industrial Strategy","Department for Business, Energy and Industrial Strategy",19 August 2020,Hire of Agency Staff,Energy Transformation and Clean Growth - Energy Efficiency and Local,Alexander Mann Solutions Ltd,355741,-3079.65,MF Devolved Admin-Hire of Agency Staff,EC2N 3AQ,VENDOR
"Department for Business, Energy and Industrial Strategy","Department for Business, Energy and Industrial Strategy",19 August 2020,Hire of Agency Staff,Energy Transformation and Clean Growth - Energy Efficiency and Local,Alexander Mann Solutions Ltd,355741,6775.23,MF Devolved Admin-Hire of Agency Staff,EC2N 3AQ,VENDOR
"Department for Business, Energy and Industrial Strategy","Department for Business, Energy and Industrial Strategy",27 August 2020,Economic Consultancy & Research,"Industrial Strategy, Science and Innovation - Business Growth",LONDON ECONOMICS LTD,356003,14940.00,Economic Intelligence And Analysis-Economic Consultancy & Research,WC2R 1LA,VENDOR
"Department for Business, Energy and Industrial Strategy","Department for Business, Energy and Industrial Strategy",20 August 2020,Recruitment Advice and Services,Corporate Services - Human Resources,Cabinet Office,356120,1879.20,MF Non Devolved Admin-Recruitment Advice and Services,FY1 9JN,WGA ONLY
"Department for Business, Energy and Industrial Strategy","Department for Business, Energy and Industrial Strategy",20 August 2020,Recruitment Advice and Services,Corporate Services - Human Resources,Cabinet Office,356120,4350.00,MF Non Devolved Admin-Recruitment Advice and Services,FY1 9JN,WGA ONLY
"Department for Business, Energy and Industrial Strategy","Department for Business, Energy and Industrial Strategy",03 August 2020,Grant-In-Aid to Arms Length Bodies,Market Frameworks - Labour Market,ACAS,356218,4300000.00,ACAS Non-Budget-Grant-In-Aid to Arms Length Bodies,NW1 3JJ,WGA ONLY
"Department for Business, Energy and Industrial Strategy","Department for Business, Energy and Industrial Strategy",03 August 2020,Grant-In-Aid to Arms Length Bodies,Energy and Security - NDA,Nuclear Decommissioning Authority,356244,-227000.00,Nuclear Decommissioning Authority Grant in Aid-Grant-In-Aid to Arms Length Bodies,CA24 3HU,VENDOR
"Department for Business, Energy and Industrial Strategy","Department for Business, Energy and Industrial Strategy",03 August 2020,Grant-In-Aid to Arms Length Bodies,Energy and Security - NDA,Nuclear Decommissioning Authority,356244,227227000.00,Nuclear Decommissioning Authority Grant in Aid-Grant-In-Aid to Arms Length Bodies,CA24 3HU,VENDOR
"Department for Business, Energy and Industrial Strategy","Department for Business, Energy and Industrial Strategy",03 August 2020,Utilisation of Provisions - British Energy,Energy and Security - British Energy Historic Payments,Nuclear Decommissioning Authority,356245,2548582.97,British Energy Historic Liabilities Funding-Utilisation of Provisions - British Energy,CA24 3HW,VENDOR
"Department for Business, Energy and Industrial Strategy","Department for Business, Energy and Industrial Strategy",03 August 2020,Utilisation of Provisions - British Energy,Energy and Security - British Energy Historic Payments,Nuclear Decommissioning Authority,356246,9395862.02,British Energy Historic Liabilities Funding-Utilisation of Provisions - British Energy,CA24 3HW,VENDOR
"Department for Business, Energy and Industrial Strategy","Department for Business, Energy and Industrial Strategy",03 August 2020,R & D Outsourced Other,"Industrial Strategy, Science and Innovation - Government Office for Science",Alexander Mann Solutions Ltd,356292,342.60,Foresight: Horizon Scanning-R & D Outsourced Other,EC2N 3AQ,VENDOR
"Department for Business, Energy and Industrial Strategy","Department for Business, Energy and Industrial Strategy",04 August 2020,R & D Hire of Agency Staff,Energy Transformation and Clean Growth - Science and Innovation,Alexander Mann Solutions Ltd,356311,1847.76,Innovation Delivery Cross Cutting-R & D Hire of Agency Staff,EC2N 3AQ,VENDOR
"Department for Business, Energy and Industrial Strategy","Department for Business, Energy and Industrial Strategy",19 August 2020,Hire of Agency Staff,Energy Transformation and Clean Growth - Energy Efficiency and Local,Alexander Mann Solutions Ltd,356330,-6159.30,MF Devolved Admin-Hire of Agency Staff,EC2N 3AQ,VENDOR
"Department for Business, Energy and Industrial Strategy","Department for Business, Energy and Industrial Strategy",19 August 2020,Hire of Agency Staff,Energy Transformation and Clean Growth - Energy Efficiency and Local,Alexander Mann Solutions Ltd,356330,9854.88,MF Devolved Admin-Hire of Agency Staff,EC2N 3AQ,VENDOR
"Department for Business, Energy and Industrial Strategy","Department for Business, Energy and Industrial Strategy",18 August 2020,Training And Development Expenditure,Corporate Services - Human Resources,KPMG LLP,356437,2876.00,EU Exit: HR ADM-Training And Development Expenditure,E14 5GL,VENDOR
"Department for Business, Energy and Industrial Strategy","Department for Business, Energy and Industrial Strategy",17 August 2020,Misc. Non Procurement Spend,Market Frameworks - Office for Product Safety and Standards,SUFFOLK COUNTY COUNCIL,356502,-24000.00,OPSS: National Capacity Co-ordination-Misc. Non Procurement Spend,IP1 2DH,WGA ONLY
"Department for Business, Energy and Industrial Strategy","Department for Business, Energy and Industrial Strategy",17 August 2020,Misc. Non Procurement Spend,Market Frameworks - Office for Product Safety and Standards,SUFFOLK COUNTY COUNCIL,356502,48000.00,OPSS: National Capacity Co-ordination-Misc. Non Procurement Spend,IP1 2DH,WGA ONLY
"Department for Business, Energy and Industrial Strategy","Department for Business, Energy and Industrial Strategy",03 August 2020,R & D Current Grants to Central Government,"Industrial Strategy, Science and Innovation - International Science and Innovation",Foreign and Commonwealth Office (FCO),356532,392.67,Newton Fund - Jordan-R & D Current Grants to Central Government,MK10 1PX,WGA ONLY
"Department for Business, Energy and Industrial Strategy","Department for Business, Energy and Industrial Strategy",03 August 2020,R & D Current Grants to Central Government,"Industrial Strategy, Science and Innovation - International Science and Innovation",Foreign and Commonwealth Office (FCO),356533,2229.34,NEWTON FUND - Turkey-R & D Current Grants to Central Government,MK10 1PX,WGA ONLY
"Department for Business, Energy and Industrial Strategy","Department for Business, Energy and Industrial Strategy",03 August 2020,R & D Current Grants to Central Government,"Industrial Strategy, Science and Innovation - International Science and Innovation",Foreign and Commonwealth Office (FCO),356534,2721.49,NEWTON FUND - Turkey-R & D Current Grants to Central Government,MK10 1PX,WGA ONLY
"Department for Business, Energy and Industrial Strategy","Department for Business, Energy and Industrial Strategy",03 August 2020,Hotel & Accommodation,"Corporate Services - Policy, Delivery and Private Office",Foreign and Commonwealth Office (FCO),356535,179.00,MF Devolved Admin-Hotel & Accommodation,MK10 1PX,WGA ONLY
"Department for Business, Energy and Industrial Strategy","Department for Business, Energy and Industrial Strategy",03 August 2020,R & D Current Grants to Central Government,"Industrial Strategy, Science and Innovation - International Science and Innovation",Foreign and Commonwealth Office (FCO),356536,-27.85,NEWTON FUND - India-R & D Current Grants to Central Government,MK10 1PX,WGA ONLY
"Department for Business, Energy and Industrial Strategy","Department for Business, Energy and Industrial Strategy",11 August 2020,R & D Current Grants to Central Government,"Industrial Strategy, Science and Innovation - International Science and Innovation",Foreign and Commonwealth Office (FCO),356544,12.30,NEWTON FUND - Thailand-R & D Current Grants to Central Government,MK10 1PX,WGA ONLY
"Department for Business, Energy and Industrial Strategy","Department for Business, Energy and Industrial Strategy",11 August 2020,R & D Current Grants to Central Government,"Industrial Strategy, Science and Innovation - International Science and Innovation",Foreign and Commonwealth Office (FCO),356546,2.73,NEWTON FUND - South Africa and wider Africa-R & D Current Grants to Central Government,MK10 1PX,WGA ONLY
"Department for Business, Energy and Industrial Strategy","Department for Business, Energy and Industrial Strategy",11 August 2020,R & D Current Grants to Central Government,"Industrial Strategy, Science and Innovation - International Science and Innovation",Foreign and Commonwealth Office (FCO),356547,12.12,NEWTON FUND - India-R & D Current Grants to Central Government,MK10 1PX,WGA ONLY
"Department for Business, Energy and Industrial Strategy","Department for Business, Energy and Industrial Strategy",11 August 2020,R & D Current Grants to Central Government,"Industrial Strategy, Science and Innovation - International Science and Innovation",Foreign and Commonwealth Office (FCO),356548,12.62,NEWTON FUND - India-R & D Current Grants to Central Government,MK10 1PX,WGA ONLY
"Department for Business, Energy and Industrial Strategy","Department for Business, Energy and Industrial Strategy",11 August 2020,R & D Current Grants to Central Government,"Industrial Strategy, Science and Innovation - International Science and Innovation",Foreign and Commonwealth Office (FCO),356549,12.62,NEWTON FUND - India-R & D Current Grants to Central Government,MK10 1PX,WGA ONLY
"Department for Business, Energy and Industrial Strategy","Department for Business, Energy and Industrial Strategy",11 August 2020,R & D Current Grants to Central Government,"Industrial Strategy, Science and Innovation - International Science and Innovation",Foreign and Commonwealth Office (FCO),356550,0.94,NEWTON FUND - Vietnam-R & D Current Grants to Central Government,MK10 1PX,WGA ONLY
"Department for Business, Energy and Industrial Strategy","Department for Business, Energy and Industrial Strategy",11 August 2020,R & D Current Grants to Central Government,"Industrial Strategy, Science and Innovation - International Science and Innovation",Foreign and Commonwealth Office (FCO),356551,0.94,NEWTON FUND - Vietnam-R & D Current Grants to Central Government,MK10 1PX,WGA ONLY
"Department for Business, Energy and Industrial Strategy","Department for Business, Energy and Industrial Strategy",11 August 2020,R & D Current Grants to Central Government,"Industrial Strategy, Science and Innovation - International Science and Innovation",Foreign and Commonwealth Office (FCO),356552,0.44,Newton Fund - Jordan-R & D Current Grants to Central Government,MK10 1PX,WGA ONLY
"Department for Business, Energy and Industrial Strategy","Department for Business, Energy and Industrial Strategy",11 August 2020,R & D Current Grants to Central Government,"Industrial Strategy, Science and Innovation - International Science and Innovation",Foreign and Commonwealth Office (FCO),356553,29.42,Newton Fund - Jordan-R & D Current Grants to Central Government,MK10 1PX,WGA ONLY
"Department for Business, Energy and Industrial Strategy","Department for Business, Energy and Industrial Strategy",11 August 2020,R & D Current Grants to Central Government,"Industrial Strategy, Science and Innovation - International Science and Innovation",Foreign and Commonwealth Office (FCO),356554,625.78,NEWTON FUND - Turkey-R & D Current Grants to Central Government,MK10 1PX,WGA ONLY
"Department for Business, Energy and Industrial Strategy","Department for Business, Energy and Industrial Strategy",11 August 2020,R & D Current Grants to Central Government,"Industrial Strategy, Science and Innovation - International Science and Innovation",Foreign and Commonwealth Office (FCO),356555,1095.11,NEWTON FUND - Turkey-R & D Current Grants to Central Government,MK10 1PX,WGA ONLY
"Department for Business, Energy and Industrial Strategy","Department for Business, Energy and Industrial Strategy",11 August 2020,R & D Current Grants to Central Government,"Industrial Strategy, Science and Innovation - International Science and Innovation",Foreign and Commonwealth Office (FCO),356556,102.81,Newton Fund - Jordan-R & D Current Grants to Central Government,MK10 1PX,WGA ONLY
"Department for Business, Energy and Industrial Strategy","Department for Business, Energy and Industrial Strategy",11 August 2020,R & D Current Grants to Central Government,"Industrial Strategy, Science and Innovation - International Science and Innovation",Foreign and Commonwealth Office (FCO),356558,14.97,NEWTON FUND - China-R & D Current Grants to Central Government,MK10 1PX,WGA ONLY
"Department for Business, Energy and Industrial Strategy","Department for Business, Energy and Industrial Strategy",11 August 2020,R & D Current Grants to Central Government,"Industrial Strategy, Science and Innovation - International Science and Innovation",Foreign and Commonwealth Office (FCO),356559,191.93,NEWTON FUND - Brazil-R & D Current Grants to Central Government,MK10 1PX,WGA ONLY
"Department for Business, Energy and Industrial Strategy","Department for Business, Energy and Industrial Strategy",11 August 2020,R & D Current Grants to Central Government,"Industrial Strategy, Science and Innovation - International Science and Innovation",Foreign and Commonwealth Office (FCO),356560,434.74,NEWTON FUND - Brazil-R & D Current Grants to Central Government,MK10 1PX,WGA ONLY
"Department for Business, Energy and Industrial Strategy","Department for Business, Energy and Industrial Strategy",11 August 2020,R & D Current Grants to Central Government,"Industrial Strategy, Science and Innovation - International Science and Innovation",Foreign and Commonwealth Office (FCO),356561,522.28,NEWTON FUND - Brazil-R & D Current Grants to Central Government,MK10 1PX,WGA ONLY
"Department for Business, Energy and Industrial Strategy","Department for Business, Energy and Industrial Strategy",11 August 2020,R & D Current Grants to Central Government,"Industrial Strategy, Science and Innovation - International Science and Innovation",Foreign and Commonwealth Office (FCO),356562,346.79,NEWTON FUND - Brazil-R & D Current Grants to Central Government,MK10 1PX,WGA ONLY
"Department for Business, Energy and Industrial Strategy","Department for Business, Energy and Industrial Strategy",11 August 2020,R & D Current Grants to Central Government,"Industrial Strategy, Science and Innovation - International Science and Innovation",Foreign and Commonwealth Office (FCO),356563,817.68,NEWTON FUND - Brazil-R & D Current Grants to Central Government,MK10 1PX,WGA ONLY
"Department for Business, Energy and Industrial Strategy","Department for Business, Energy and Industrial Strategy",11 August 2020,R & D Current Grants to Central Government,"Industrial Strategy, Science and Innovation - International Science and Innovation",Foreign and Commonwealth Office (FCO),356564,1375.34,NEWTON FUND - Brazil-R & D Current Grants to Central Government,MK10 1PX,WGA ONLY
"Department for Business, Energy and Industrial Strategy","Department for Business, Energy and Industrial Strategy",11 August 2020,R & D Current Grants to Central Government,"Industrial Strategy, Science and Innovation - International Science and Innovation",Foreign and Commonwealth Office (FCO),356565,15.87,NEWTON FUND - China-R & D Current Grants to Central Government,MK10 1PX,WGA ONLY
"Department for Business, Energy and Industrial Strategy","Department for Business, Energy and Industrial Strategy",11 August 2020,R & D Current Grants to Central Government,"Industrial Strategy, Science and Innovation - International Science and Innovation",Foreign and Commonwealth Office (FCO),356567,363.01,NEWTON FUND - Mexico-R & D Current Grants to Central Government,MK10 1PX,WGA ONLY
"Department for Business, Energy and Industrial Strategy","Department for Business, Energy and Industrial Strategy",11 August 2020,R & D Current Grants to Central Government,"Industrial Strategy, Science and Innovation - International Science and Innovation",Foreign and Commonwealth Office (FCO),356568,541.84,NEWTON FUND - Mexico-R & D Current Grants to Central Government,MK10 1PX,WGA ONLY
"Department for Business, Energy and Industrial Strategy","Department for Business, Energy and Industrial Strategy",11 August 2020,R & D Current Grants to Central Government,"Industrial Strategy, Science and Innovation - International Science and Innovation",Foreign and Commonwealth Office (FCO),356569,143.75,Newton Fund - Kenya-R & D Current Grants to Central Government,MK10 1PX,WGA ONLY
"Department for Business, Energy and Industrial Strategy","Department for Business, Energy and Industrial Strategy",11 August 2020,R & D Current Grants to Central Government,"Industrial Strategy, Science and Innovation - International Science and Innovation",Foreign and Commonwealth Office (FCO),356570,13.01,Newton Fund - Kenya-R & D Current Grants to Central Government,MK10 1PX,WGA ONLY
"Department for Business, Energy and Industrial Strategy","Department for Business, Energy and Industrial Strategy",11 August 2020,R & D Current Grants to Central Government,"Industrial Strategy, Science and Innovation - International Science and Innovation",Foreign and Commonwealth Office (FCO),356571,334.27,Newton Fund - Kenya-R & D Current Grants to Central Government,MK10 1PX,WGA ONLY
"Department for Business, Energy and Industrial Strategy","Department for Business, Energy and Industrial Strategy",11 August 2020,R & D Current Grants to Central Government,"Industrial Strategy, Science and Innovation - International Science and Innovation",Foreign and Commonwealth Office (FCO),356572,366.15,Newton Fund - Kenya-R & D Current Grants to Central Government,MK10 1PX,WGA ONLY
"Department for Business, Energy and Industrial Strategy","Department for Business, Energy and Industrial Strategy",11 August 2020,R & D Current Grants to Central Government,"Industrial Strategy, Science and Innovation - International Science and Innovation",Foreign and Commonwealth Office (FCO),356573,16.52,Newton Fund - Kenya-R & D Current Grants to Central Government,MK10 1PX,WGA ONLY
"Department for Business, Energy and Industrial Strategy","Department for Business, Energy and Industrial Strategy",11 August 2020,R & D Current Grants to Central Government,"Industrial Strategy, Science and Innovation - International Science and Innovation",Foreign and Commonwealth Office (FCO),356574,493.48,NEWTON FUND - Mexico-R & D Current Grants to Central Government,MK10 1PX,WGA ONLY
"Department for Business, Energy and Industrial Strategy","Department for Business, Energy and Industrial Strategy",11 August 2020,R & D Current Grants to Central Government,"Industrial Strategy, Science and Innovation - International Science and Innovation",Foreign and Commonwealth Office (FCO),356575,755.07,NEWTON FUND - Mexico-R & D Current Grants to Central Government,MK10 1PX,WGA ONLY
"Department for Business, Energy and Industrial Strategy","Department for Business, Energy and Industrial Strategy",11 August 2020,R & D Current Grants to Central Government,"Industrial Strategy, Science and Innovation - International Science and Innovation",Foreign and Commonwealth Office (FCO),356576,111.85,Newton Fund - Peru-R & D Current Grants to Central Government,MK10 1PX,WGA ONLY
"Department for Business, Energy and Industrial Strategy","Department for Business, Energy and Industrial Strategy",11 August 2020,R & D Current Grants to Central Government,"Industrial Strategy, Science and Innovation - International Science and Innovation",Foreign and Commonwealth Office (FCO),356577,252.81,Newton Fund - Peru-R & D Current Grants to Central Government,MK10 1PX,WGA ONLY
"Department for Business, Energy and Industrial Strategy","Department for Business, Energy and Industrial Strategy",11 August 2020,R & D Current Grants to Central Government,"Industrial Strategy, Science and Innovation - International Science and Innovation",Foreign and Commonwealth Office (FCO),356578,1242.81,Newton Fund - Peru-R & D Current Grants to Central Government,MK10 1PX,WGA ONLY
"Department for Business, Energy and Industrial Strategy","Department for Business, Energy and Industrial Strategy",11 August 2020,R & D Current Grants to Central Government,"Industrial Strategy, Science and Innovation - International Science and Innovation",Foreign and Commonwealth Office (FCO),356579,2809.37,Newton Fund - Peru-R & D Current Grants to Central Government,MK10 1PX,WGA ONLY
"Department for Business, Energy and Industrial Strategy","Department for Business, Energy and Industrial Strategy",11 August 2020,R & D Current Grants to Central Government,"Industrial Strategy, Science and Innovation - International Science and Innovation",Foreign and Commonwealth Office (FCO),356580,111.85,Newton Fund - Peru-R & D Current Grants to Central Government,MK10 1PX,WGA ONLY
"Department for Business, Energy and Industrial Strategy","Department for Business, Energy and Industrial Strategy",11 August 2020,R & D Current Grants to Central Government,"Industrial Strategy, Science and Innovation - International Science and Innovation",Foreign and Commonwealth Office (FCO),356581,252.81,Newton Fund - Peru-R & D Current Grants to Central Government,MK10 1PX,WGA ONLY
"Department for Business, Energy and Industrial Strategy","Department for Business, Energy and Industrial Strategy",11 August 2020,R & D Current Grants to Central Government,"Industrial Strategy, Science and Innovation - International Science and Innovation",Foreign and Commonwealth Office (FCO),356582,1242.81,Newton Fund - Peru-R & D Current Grants to Central Government,MK10 1PX,WGA ONLY
"Department for Business, Energy and Industrial Strategy","Department for Business, Energy and Industrial Strategy",11 August 2020,R & D Current Grants to Central Government,"Industrial Strategy, Science and Innovation - International Science and Innovation",Foreign and Commonwealth Office (FCO),356583,2809.37,Newton Fund - Peru-R & D Current Grants to Central Government,MK10 1PX,WGA ONLY
"Department for Business, Energy and Industrial Strategy","Department for Business, Energy and Industrial Strategy",11 August 2020,R & D Current Grants to Central Government,"Industrial Strategy, Science and Innovation - International Science and Innovation",Foreign and Commonwealth Office (FCO),356584,429.07,NEWTON FUND - Philippines-R & D Current Grants to Central Government,MK10 1PX,WGA ONLY
"Department for Business, Energy and Industrial Strategy","Department for Business, Energy and Industrial Strategy",11 August 2020,R & D Current Grants to Central Government,"Industrial Strategy, Science and Innovation - International Science and Innovation",Foreign and Commonwealth Office (FCO),356586,722.88,NEWTON FUND - Philippines-R & D Current Grants to Central Government,MK10 1PX,WGA ONLY
"Department for Business, Energy and Industrial Strategy","Department for Business, Energy and Industrial Strategy",11 August 2020,R & D Current Grants to Central Government,"Industrial Strategy, Science and Innovation - International Science and Innovation",Foreign and Commonwealth Office (FCO),356587,16.87,Newton Fund - Peru-R & D Current Grants to Central Government,MK10 1PX,WGA ONLY
"Department for Business, Energy and Industrial Strategy","Department for Business, Energy and Industrial Strategy",11 August 2020,R & D Current Grants to Central Government,"Industrial Strategy, Science and Innovation - International Science and Innovation",Foreign and Commonwealth Office (FCO),356588,27.07,Newton Fund - Peru-R & D Current Grants to Central Government,MK10 1PX,WGA ONLY
"Department for Business, Energy and Industrial Strategy","Department for Business, Energy and Industrial Strategy",11 August 2020,R & D Current Grants to Central Government,"Industrial Strategy, Science and Innovation - International Science and Innovation",Foreign and Commonwealth Office (FCO),356589,108.27,Newton Fund - Peru-R & D Current Grants to Central Government,MK10 1PX,WGA ONLY
"Department for Business, Energy and Industrial Strategy","Department for Business, Energy and Industrial Strategy",11 August 2020,R & D Current Grants to Central Government,"Industrial Strategy, Science and Innovation - International Science and Innovation",Foreign and Commonwealth Office (FCO),356590,2132.68,Newton Fund - Jordan-R & D Current Grants to Central Government,MK10 1PX,WGA ONLY
"Department for Business, Energy and Industrial Strategy","Department for Business, Energy and Industrial Strategy",11 August 2020,R & D Current Grants to Central Government,"Industrial Strategy, Science and Innovation - International Science and Innovation",Foreign and Commonwealth Office (FCO),356591,93.85,NEWTON FUND - South Africa and wider Africa-R & D Current Grants to Central Government,MK10 1PX,WGA ONLY
"Department for Business, Energy and Industrial Strategy","Department for Business, Energy and Industrial Strategy",11 August 2020,R & D Current Grants to Central Government,"Industrial Strategy, Science and Innovation - International Science and Innovation",Foreign and Commonwealth Office (FCO),356592,-2809.37,Newton Fund - Peru-R & D Current Grants to Central Government,MK10 1PX,WGA ONLY
"Department for Business, Energy and Industrial Strategy","Department for Business, Energy and Industrial Strategy",11 August 2020,R & D Current Grants to Central Government,"Industrial Strategy, Science and Innovation - International Science and Innovation",Foreign and Commonwealth Office (FCO),356593,-1242.81,Newton Fund - Peru-R & D Current Grants to Central Government,MK10 1PX,WGA ONLY
"Department for Business, Energy and Industrial Strategy","Department for Business, Energy and Industrial Strategy",11 August 2020,R & D Current Grants to Central Government,"Industrial Strategy, Science and Innovation - International Science and Innovation",Foreign and Commonwealth Office (FCO),356594,-252.81,Newton Fund - Peru-R & D Current Grants to Central Government,MK10 1PX,WGA ONLY
"Department for Business, Energy and Industrial Strategy","Department for Business, Energy and Industrial Strategy",11 August 2020,R & D Current Grants to Central Government,"Industrial Strategy, Science and Innovation - International Science and Innovation",Foreign and Commonwealth Office (FCO),356595,-111.85,Newton Fund - Peru-R & D Current Grants to Central Government,MK10 1PX,WGA ONLY
"Department for Business, Energy and Industrial Strategy","Department for Business, Energy and Industrial Strategy",17 August 2020,R & D Current Grants to Central Government,"Industrial Strategy, Science and Innovation - International Science and Innovation",Foreign and Commonwealth Office (FCO),356604,114.97,Newton Fund - Jordan-R & D Current Grants to Central Government,MK10 1PX,WGA ONLY
"Department for Business, Energy and Industrial Strategy","Department for Business, Energy and Industrial Strategy",17 August 2020,R & D Current Grants to Central Government,"Industrial Strategy, Science and Innovation - International Science and Innovation",Foreign and Commonwealth Office (FCO),356605,186.80,NEWTON FUND - Mexico-R & D Current Grants to Central Government,MK10 1PX,WGA ONLY
"Department for Business, Energy and Industrial Strategy","Department for Business, Energy and Industrial Strategy",17 August 2020,R & D Current Grants to Central Government,"Industrial Strategy, Science and Innovation - International Science and Innovation",Foreign and Commonwealth Office (FCO),356606,16.78,Newton Fund - Peru-R & D Current Grants to Central Government,MK10 1PX,WGA ONLY
"Department for Business, Energy and Industrial Strategy","Department for Business, Energy and Industrial Strategy",17 August 2020,R & D Current Grants to Central Government,"Industrial Strategy, Science and Innovation - International Science and Innovation",Foreign and Commonwealth Office (FCO),356607,74.09,Newton Fund - Peru-R & D Current Grants to Central Government,MK10 1PX,WGA ONLY
"Department for Business, Energy and Industrial Strategy","Department for Business, Energy and Industrial Strategy",17 August 2020,R & D Current Grants to Central Government,"Industrial Strategy, Science and Innovation - International Science and Innovation",Foreign and Commonwealth Office (FCO),356608,124.28,Newton Fund - Peru-R & D Current Grants to Central Government,MK10 1PX,WGA ONLY
"Department for Business, Energy and Industrial Strategy","Department for Business, Energy and Industrial Strategy",17 August 2020,R & D Current Grants to Central Government,"Industrial Strategy, Science and Innovation - International Science and Innovation",Foreign and Commonwealth Office (FCO),356609,280.94,Newton Fund - Peru-R & D Current Grants to Central Government,MK10 1PX,WGA ONLY
"Department for Business, Energy and Industrial Strategy","Department for Business, Energy and Industrial Strategy",17 August 2020,R & D Current Grants to Central Government,"Industrial Strategy, Science and Innovation - International Science and Innovation",Foreign and Commonwealth Office (FCO),356610,15.08,NEWTON FUND - China-R & D Current Grants to Central Government,MK10 1PX,WGA ONLY
"Department for Business, Energy and Industrial Strategy","Department for Business, Energy and Industrial Strategy",17 August 2020,R & D Current Grants to Central Government,"Industrial Strategy, Science and Innovation - International Science and Innovation",Foreign and Commonwealth Office (FCO),356611,888.96,NEWTON FUND - Egypt-R & D Current Grants to Central Government,MK10 1PX,WGA ONLY
"Department for Business, Energy and Industrial Strategy","Department for Business, Energy and Industrial Strategy",17 August 2020,R & D Current Grants to Central Government,"Industrial Strategy, Science and Innovation - International Science and Innovation",Foreign and Commonwealth Office (FCO),356612,1563.50,NEWTON FUND - Egypt-R & D Current Grants to Central Government,MK10 1PX,WGA ONLY
"Department for Business, Energy and Industrial Strategy","Department for Business, Energy and Industrial Strategy",17 August 2020,R & D Current Grants to Private Sector - NPISH,"Industrial Strategy, Science and Innovation - International Science and Innovation",Foreign and Commonwealth Office (FCO),356613,5.75,Newton Fund Prize-R & D Current Grants to Private Sector - NPISH,MK10 1PX,WGA ONLY
"Department for Business, Energy and Industrial Strategy","Department for Business, Energy and Industrial Strategy",17 August 2020,R & D Current Grants to Central Government,"Industrial Strategy, Science and Innovation - International Science and Innovation",Foreign and Commonwealth Office (FCO),356614,1023.84,NEWTON FUND - Indonesia-R & D Current Grants to Central Government,MK10 1PX,WGA ONLY
"Department for Business, Energy and Industrial Strategy","Department for Business, Energy and Industrial Strategy",17 August 2020,R & D Current Grants to Central Government,"Industrial Strategy, Science and Innovation - International Science and Innovation",Foreign and Commonwealth Office (FCO),356615,1454.24,NEWTON FUND - Indonesia-R & D Current Grants to Central Government,MK10 1PX,WGA ONLY
"Department for Business, Energy and Industrial Strategy","Department for Business, Energy and Industrial Strategy",17 August 2020,R & D Current Grants to Central Government,"Industrial Strategy, Science and Innovation - International Science and Innovation",Foreign and Commonwealth Office (FCO),356616,363.01,NEWTON FUND - Mexico-R & D Current Grants to Central Government,MK10 1PX,WGA ONLY
"Department for Business, Energy and Industrial Strategy","Department for Business, Energy and Industrial Strategy",17 August 2020,R & D Current Grants to Central Government,"Industrial Strategy, Science and Innovation - International Science and Innovation",Foreign and Commonwealth Office (FCO),356617,541.84,NEWTON FUND - Mexico-R & D Current Grants to Central Government,MK10 1PX,WGA ONLY
"Department for Business, Energy and Industrial Strategy","Department for Business, Energy and Industrial Strategy",17 August 2020,R & D Current Grants to Central Government,"Industrial Strategy, Science and Innovation - International Science and Innovation",Foreign and Commonwealth Office (FCO),356618,1076.42,Newton Fund - Peru-R & D Current Grants to Central Government,MK10 1PX,WGA ONLY
"Department for Business, Energy and Industrial Strategy","Department for Business, Energy and Industrial Strategy",17 August 2020,R & D Current Grants to Central Government,"Industrial Strategy, Science and Innovation - International Science and Innovation",Foreign and Commonwealth Office (FCO),356619,2454.42,Newton Fund - Peru-R & D Current Grants to Central Government,MK10 1PX,WGA ONLY
"Department for Business, Energy and Industrial Strategy","Department for Business, Energy and Industrial Strategy",17 August 2020,R & D Current Grants to Central Government,"Industrial Strategy, Science and Innovation - International Science and Innovation",Foreign and Commonwealth Office (FCO),356620,722.88,NEWTON FUND - Philippines-R & D Current Grants to Central Government,MK10 1PX,WGA ONLY
"Department for Business, Energy and Industrial Strategy","Department for Business, Energy and Industrial Strategy",17 August 2020,R & D Current Grants to Central Government,"Industrial Strategy, Science and Innovation - International Science and Innovation",Foreign and Commonwealth Office (FCO),356621,919.84,NEWTON FUND - Philippines-R & D Current Grants to Central Government,MK10 1PX,WGA ONLY
"Department for Business, Energy and Industrial Strategy","Department for Business, Energy and Industrial Strategy",17 August 2020,R & D Current Grants to Central Government,"Industrial Strategy, Science and Innovation - International Science and Innovation",Foreign and Commonwealth Office (FCO),356622,1069.03,NEWTON FUND - Philippines-R & D Current Grants to Central Government,MK10 1PX,WGA ONLY
"Department for Business, Energy and Industrial Strategy","Department for Business, Energy and Industrial Strategy",17 August 2020,R & D Current Grants to Central Government,"Industrial Strategy, Science and Innovation - International Science and Innovation",Foreign and Commonwealth Office (FCO),356623,131.46,NEWTON FUND - Indonesia-R & D Current Grants to Central Government,MK10 1PX,WGA ONLY
"Department for Business, Energy and Industrial Strategy","Department for Business, Energy and Industrial Strategy",17 August 2020,R & D Current Grants to Central Government,"Industrial Strategy, Science and Innovation - International Science and Innovation",Foreign and Commonwealth Office (FCO),356624,22.12,NEWTON FUND - Mexico-R & D Current Grants to Central Government,MK10 1PX,WGA ONLY
"Department for Business, Energy and Industrial Strategy","Department for Business, Energy and Industrial Strategy",17 August 2020,R & D Current Grants to Central Government,"Industrial Strategy, Science and Innovation - International Science and Innovation",Foreign and Commonwealth Office (FCO),356625,5979.99,NEWTON FUND - South Africa and wider Africa-R & D Current Grants to Central Government,MK10 1PX,WGA ONLY
"Department for Business, Energy and Industrial Strategy","Department for Business, Energy and Industrial Strategy",17 August 2020,R & D Current Grants to Central Government,"Industrial Strategy, Science and Innovation - International Science and Innovation",Foreign and Commonwealth Office (FCO),356626,111.85,Newton Fund - Peru-R & D Current Grants to Central Government,MK10 1PX,WGA ONLY
"Department for Business, Energy and Industrial Strategy","Department for Business, Energy and Industrial Strategy",17 August 2020,R & D Current Grants to Central Government,"Industrial Strategy, Science and Innovation - International Science and Innovation",Foreign and Commonwealth Office (FCO),356627,252.81,Newton Fund - Peru-R & D Current Grants to Central Government,MK10 1PX,WGA ONLY
"Department for Business, Energy and Industrial Strategy","Department for Business, Energy and Industrial Strategy",17 August 2020,R & D Current Grants to Central Government,"Industrial Strategy, Science and Innovation - International Science and Innovation",Foreign and Commonwealth Office (FCO),356628,-4507.56,NEWTON FUND - China-R & D Current Grants to Central Government,MK10 1PX,WGA ONLY
"Department for Business, Energy and Industrial Strategy","Department for Business, Energy and Industrial Strategy",17 August 2020,R & D Current Grants to Central Government,"Industrial Strategy, Science and Innovation - International Science and Innovation",Foreign and Commonwealth Office (FCO),356629,-541.84,NEWTON FUND - Mexico-R & D Current Grants to Central Government,MK10 1PX,WGA ONLY
"Department for Business, Energy and Industrial Strategy","Department for Business, Energy and Industrial Strategy",17 August 2020,R & D Current Grants to Central Government,"Industrial Strategy, Science and Innovation - International Science and Innovation",Foreign and Commonwealth Office (FCO),356630,-363.01,NEWTON FUND - Mexico-R & D Current Grants to Central Government,MK10 1PX,WGA ONLY
"Department for Business, Energy and Industrial Strategy","Department for Business, Energy and Industrial Strategy",03 August 2020,Current Grants To Central Government,Energy Transformation and Clean Growth - Clean Heat,OFFICE OF GAS AND ELECTRICITY MARKETS (OFGEM),356637,8840243.00,RHI Domestic AME Payments-Current Grants To Central Government,SW1P 3GE,GRANT
"Department for Business, Energy and Industrial Strategy","Department for Business, Energy and Industrial Strategy",12 August 2020,R & D Current Grants to Private Sector - NPISH,Business Sectors - Advanced Manufacturing,AEROSPACE TECHNOLOGY INSTITUTE,356667,574497.00,Aerospace Technology Institute-R & D Current Grants to Private Sector - NPISH,MK43 0TR,GRANT
"Department for Business, Energy and Industrial Strategy","Department for Business, Energy and Industrial Strategy",05 August 2020,Marketing and Media,Corporate Services - Communications,KANTAR UK LTD,356735,26550.00,EU Exit: CPG ADM-Marketing and Media,W5 1UA,VENDOR
"Department for Business, Energy and Industrial Strategy","Department for Business, Energy and Industrial Strategy",20 August 2020,Publications,Energy and Security - Energy Development and Resilience,THE STATIONERY OFFICE LTD,356757,-115.40,Offshore Environmental Permits-Publications,NR3 1QZ,VENDOR
"Department for Business, Energy and Industrial Strategy","Department for Business, Energy and Industrial Strategy",20 August 2020,Publications,Energy and Security - Energy Development and Resilience,THE STATIONERY OFFICE LTD,356757,2.15,Offshore Environmental Permits-Publications,NR3 1QZ,VENDOR
"Department for Business, Energy and Industrial Strategy","Department for Business, Energy and Industrial Strategy",20 August 2020,Publications,Energy and Security - Energy Development and Resilience,THE STATIONERY OFFICE LTD,356757,251.30,Offshore Environmental Permits-Publications,NR3 1QZ,VENDOR
"Department for Business, Energy and Industrial Strategy","Department for Business, Energy and Industrial Strategy",20 August 2020,Publications,Energy and Security - Energy Development and Resilience,THE STATIONERY OFFICE LTD,356758,3.60,Offshore Environmental Permits-Publications,NR3 1QZ,VENDOR
"Department for Business, Energy and Industrial Strategy","Department for Business, Energy and Industrial Strategy",07 August 2020,R & D Research and Development Expenditure,"Industrial Strategy, Science and Innovation - International Science and Innovation",NPL MANAGEMENT LTD,356762,347613.75,NMS - NPL Cross Sector-R & D Research and Development Expenditure,TW11 0LW,VENDOR
"Department for Business, Energy and Industrial Strategy","Department for Business, Energy and Industrial Strategy",07 August 2020,R & D Research and Development Expenditure,"Industrial Strategy, Science and Innovation - International Science and Innovation",NPL MANAGEMENT LTD,356762,855683.08,NMS - NPL Energy and Environment-R & D Research and Development Expenditure,TW11 0LW,VENDOR
"Department for Business, Energy and Industrial Strategy","Department for Business, Energy and Industrial Strategy",07 August 2020,R & D Research and Development Expenditure,"Industrial Strategy, Science and Innovation - International Science and Innovation",NPL MANAGEMENT LTD,356762,1133480.17,NMS - NPL Life Sciences and Health-R & D Research and Development Expenditure,TW11 0LW,VENDOR
"Department for Business, Energy and Industrial Strategy","Department for Business, Energy and Industrial Strategy",07 August 2020,R & D Research and Development Expenditure,"Industrial Strategy, Science and Innovation - International Science and Innovation",NPL MANAGEMENT LTD,356762,1156197.42,NMS - NPL Digital-R & D Research and Development Expenditure,TW11 0LW,VENDOR
"Department for Business, Energy and Industrial Strategy","Department for Business, Energy and Industrial Strategy",07 August 2020,R & D Research and Development Expenditure,"Industrial Strategy, Science and Innovation - International Science and Innovation",NPL MANAGEMENT LTD,356762,1297776.08,NMS - NPL Advanced Manufacturing-R & D Research and Development Expenditure,TW11 0LW,VENDOR
"Department for Business, Energy and Industrial Strategy","Department for Business, Energy and Industrial Strategy",07 August 2020,R & D Current Grants to Central Government,"Industrial Strategy, Science and Innovation - International Science and Innovation",NPL MANAGEMENT LTD,356763,41666.67,NPL - ISCF Medical Imaging-R & D Current Grants to Central Government,TW11 0LW,VENDOR
"Department for Business, Energy and Industrial Strategy","Department for Business, Energy and Industrial Strategy",07 August 2020,R & D Current Grants to Central Government,"Industrial Strategy, Science and Innovation - International Science and Innovation",NPL MANAGEMENT LTD,356764,70416.67,NPL - ISCF Other-R & D Current Grants to Central Government,TW11 0LW,VENDOR
"Department for Business, Energy and Industrial Strategy","Department for Business, Energy and Industrial Strategy",07 August 2020,R & D Current Grants to Central Government,"Industrial Strategy, Science and Innovation - International Science and Innovation",NPL MANAGEMENT LTD,356765,333333.34,NPL - ISCF Other-R & D Current Grants to Central Government,TW11 0LW,VENDOR
"Department for Business, Energy and Industrial Strategy","Department for Business, Energy and Industrial Strategy",07 August 2020,R & D Current Grants to Central Government,"Industrial Strategy, Science and Innovation - International Science and Innovation",NPL MANAGEMENT LTD,356766,636209.16,NPL Strategic Priorities Fund Analysis for Innovators-R & D Current Grants to Central Government,TW11 0LW,VENDOR
"Department for Business, Energy and Industrial Strategy","Department for Business, Energy and Industrial Strategy",03 August 2020,Bank & other borrowings - NCL,"Industrial Strategy, Science and Innovation - Business Growth",British Business Bank PLC,356767,4000000.00,British Business Bank NB-Bank & other borrowings - NCL,S1 2GQ,GRANT
"Department for Business, Energy and Industrial Strategy","Department for Business, Energy and Industrial Strategy",07 August 2020,Outsourced Programme Management,Energy Transformation and Clean Growth - Clean Heat,BUILDING RESEARCH ESTABLISHMENT LTD (BRE),356772,12966.84,Clean Heat SAP (Standard Assessment Procedure)-Outsourced Programme Management,WD25 9XX,VENDOR
"Department for Business, Energy and Industrial Strategy","Department for Business, Energy and Industrial Strategy",13 August 2020,Purchase of Intangible Software,Corporate Services - Communications,WintradeGlobal,356774,-500.00,The Great Campaign Collateral-Purchase of Intangible Software,SW9 8DP,VENDOR
"Department for Business, Energy and Industrial Strategy","Department for Business, Energy and Industrial Strategy",13 August 2020,Purchase of Intangible Software,Corporate Services - Communications,WintradeGlobal,356774,1000.00,The Great Campaign Collateral-Purchase of Intangible Software,SW9 8DP,VENDOR
"Department for Business, Energy and Industrial Strategy","Department for Business, Energy and Industrial Strategy",18 August 2020,Learning and Dev - CS Skills,Corporate Services - Human Resources,CRANFIELD MANAGEMENT DEVELOPMENT LTD,356775,6443.85,MF Non Devolved Admin-Learning and Dev - CS Skills,MK43 0AL,VENDOR
"Department for Business, Energy and Industrial Strategy","Department for Business, Energy and Industrial Strategy",03 August 2020,Training And Development Expenditure,Corporate Services - Human Resources,The Social Research Association,356824,220.00,MF Non Devolved Admin-Training And Development Expenditure,WC1E 7AE,VENDOR
"Department for Business, Energy and Industrial Strategy","Department for Business, Energy and Industrial Strategy",03 August 2020,Clearing Account - Cost - Assets Under Construction - Freehold building,"Industrial Strategy, Science and Innovation - International Science and Innovation",AECOM Ltd,356836,1272.00,NMS AQML Buildings-Clearing Account - Cost - Assets Under Construction - Freehold building,AL1 3ER,VENDOR
"Department for Business, Energy and Industrial Strategy","Department for Business, Energy and Industrial Strategy",03 August 2020,R & D Current Grants to Private Sector - NPISH,"Industrial Strategy, Science and Innovation - International Science and Innovation",UKRI - Natural Environment Research Council,356839,187509.00,Global Science Innovation and Education Programme-R & D Current Grants to Private Sector - NPISH,SN2 1EU,WGA ONLY
"Department for Business, Energy and Industrial Strategy","Department for Business, Energy and Industrial Strategy",03 August 2020,Current Grants To Private Sector - NPISH,Energy Transformation and Clean Growth - International Energy and Climate Finance,The World Bank,356841,5000000.00,International Climate Finance (ICF)-Current Grants To Private Sector - NPISH,20433,GRANT
"Department for Business, Energy and Industrial Strategy","Department for Business, Energy and Industrial Strategy",03 August 2020,Accruals - NCL - ODA promissory notes,Energy Transformation and Clean Growth - International Energy and Climate Finance,BANK OF ENGLAND,356843,44105.69,International Climate Finance (ICF)-Accruals - NCL - ODA promissory notes,EC2R 8AH,VENDOR
"Department for Business, Energy and Industrial Strategy","Department for Business, Energy and Industrial Strategy",03 August 2020,Accruals - NCL - ODA promissory notes,Energy Transformation and Clean Growth - International Energy and Climate Finance,BANK OF ENGLAND,356844,639399.40,International Climate Finance (ICF)-Accruals - NCL - ODA promissory notes,EC2R 8AH,VENDOR
"Department for Business, Energy and Industrial Strategy","Department for Business, Energy and Industrial Strategy",03 August 2020,Accruals - NCL - ODA promissory notes,Energy Transformation and Clean Growth - International Energy and Climate Finance,BANK OF ENGLAND,356846,-126535.41,International Climate Finance (ICF)-Accruals - NCL - ODA promissory notes,EC2R 8AH,VENDOR
"Department for Business, Energy and Industrial Strategy","Department for Business, Energy and Industrial Strategy",03 August 2020,Accruals - NCL - ODA promissory notes,Energy Transformation and Clean Growth - International Energy and Climate Finance,BANK OF ENGLAND,356846,12780076.41,International Climate Finance (ICF)-Accruals - NCL - ODA promissory notes,EC2R 8AH,VENDOR
"Department for Business, Energy and Industrial Strategy","Department for Business, Energy and Industrial Strategy",05 August 2020,ICT Outsourcing & Maintenance/Support,"Trade, Europe and Analysis - Analysis Directorate",ACUITY TRAINING LTD,356848,1470.00,MF Devolved Admin-ICT Outsourcing & Maintenance/Support,GU2 7YG,VENDOR
"Department for Business, Energy and Industrial Strategy","Department for Business, Energy and Industrial Strategy",04 August 2020,Central Telecommunications Services,Market Frameworks - Consumer and Competition Policy,TRADING STANDARDS INSTITUTE (TSI),356854,8270.52,ADR Directive-Central Telecommunications Services,SS15 6TH,VENDOR
"Department for Business, Energy and Industrial Strategy","Department for Business, Energy and Industrial Strategy",03 August 2020,Clearing Account   - Cost - Information Technology,Market Frameworks - Office for Product Safety and Standards,Investigo Ltd,356874,3300.00,EU Markets Surveillance-Clearing Account   - Cost - Information Technology,EC2M 2QS,VENDOR
"Department for Business, Energy and Industrial Strategy","Department for Business, Energy and Industrial Strategy",03 August 2020,Other Professional Services,"Corporate Services - Policy, Delivery and Private Office",REALISE (EUROPE) LTD,356878,12600.00,MF Devolved Admin-Other Professional Services,BN17 5JH,VENDOR
"Department for Business, Energy and Industrial Strategy","Department for Business, Energy and Industrial Strategy",06 August 2020,Utilisation of Provisions - Social Assistance Benefits - Concessionary,Energy and Security - Energy Development and Resilience,CPL DISTRIBUTION LTD,356894,534837.69,"Concessionary Fuel Scheme Costs (Includes Supply, Distribution and Contract Mana-Utilisation of Provisions - Social Assistance Benefits - Concessionary",S21 1TZ,VENDOR
"Department for Business, Energy and Industrial Strategy","Department for Business, Energy and Industrial Strategy",03 August 2020,Stationery,Corporate Services - Commercial & Operations,Banner Group Limited,356921,3672.00,MF Devolved Admin-Stationery,NR3 1QU,VENDOR
"Department for Business, Energy and Industrial Strategy","Department for Business, Energy and Industrial Strategy",03 August 2020,Stationery,Corporate Services - Commercial & Operations,Banner Group Limited,356922,4680.00,MF Devolved Admin-Stationery,NR3 1QU,VENDOR
"Department for Business, Energy and Industrial Strategy","Department for Business, Energy and Industrial Strategy",03 August 2020,Stationery,Corporate Services - Commercial & Operations,Banner Group Limited,356924,1200.00,MF Devolved Admin-Stationery,NR3 1QU,VENDOR
"Department for Business, Energy and Industrial Strategy","Department for Business, Energy and Industrial Strategy",03 August 2020,Hire of Agency Staff,Market Frameworks - Office for Product Safety and Standards,Alexander Mann Solutions Ltd,356980,2155.80,OPSS: National Capacity Organisational Cross Cutting-Hire of Agency Staff,EC2N 3AQ,VENDOR
"Department for Business, Energy and Industrial Strategy","Department for Business, Energy and Industrial Strategy",10 August 2020,Hire of Agency Staff,Corporate Services - Finance & Portfolio,Alexander Mann Solutions Ltd,356981,760.57,MF Devolved Admin-Hire of Agency Staff,EC2N 3AQ,VENDOR
"Department for Business, Energy and Industrial Strategy","Department for Business, Energy and Industrial Strategy",03 August 2020,Hire of Interim Managers,"Corporate Services - Digital, Data & Technology",Alexander Mann Solutions Ltd,356982,6097.79,MF Devolved Admin-Hire of Interim Managers,EC2N 3AQ,VENDOR
"Department for Business, Energy and Industrial Strategy","Department for Business, Energy and Industrial Strategy",03 August 2020,R & D Contractors,Energy Transformation and Clean Growth - Science and Innovation,Alexander Mann Solutions Ltd,356983,362.47,Climate Change Science-R & D Contractors,EC2N 3AQ,VENDOR
"Department for Business, Energy and Industrial Strategy","Department for Business, Energy and Industrial Strategy",06 August 2020,Outsourced Programme Management,Energy Transformation and Clean Growth - Industrial Energy,Alexander Mann Solutions Ltd,356984,3024.29,Industrial Heat Policy And Research-Outsourced Programme Management,EC2N 3AQ,VENDOR
"Department for Business, Energy and Industrial Strategy","Department for Business, Energy and Industrial Strategy",06 August 2020,Outsourced Programme Management,Energy Transformation and Clean Growth - Industrial Energy,Alexander Mann Solutions Ltd,356985,2362.74,Industrial Heat Policy And Research-Outsourced Programme Management,EC2N 3AQ,VENDOR
"Department for Business, Energy and Industrial Strategy","Department for Business, Energy and Industrial Strategy",06 August 2020,Outsourced Programme Management,Energy Transformation and Clean Growth - Industrial Energy,Alexander Mann Solutions Ltd,356986,2205.18,Industrial Heat Policy And Research-Outsourced Programme Management,EC2N 3AQ,VENDOR
"Department for Business, Energy and Industrial Strategy","Department for Business, Energy and Industrial Strategy",06 August 2020,Hire of Agency Staff,Energy Transformation and Clean Growth - Industrial Energy,Alexander Mann Solutions Ltd,356988,2835.24,UK role in EU ETS-Hire of Agency Staff,EC2N 3AQ,VENDOR
"Department for Business, Energy and Industrial Strategy","Department for Business, Energy and Industrial Strategy",04 August 2020,Current Grants To Private Sector - NPISH,"Industrial Strategy, Science and Innovation - International Science and Innovation",Alexander Mann Solutions Ltd,356991,3172.08,Collaboration: Unallocated-Current Grants To Private Sector - NPISH,EC2N 3AQ,VENDOR
"Department for Business, Energy and Industrial Strategy","Department for Business, Energy and Industrial Strategy",04 August 2020,Hire of Interim Managers,"Corporate Services - Digital, Data & Technology",Alexander Mann Solutions Ltd,356992,3849.54,EU Exit: Digital ADM-Hire of Interim Managers,EC2N 3AQ,VENDOR
"Department for Business, Energy and Industrial Strategy","Department for Business, Energy and Industrial Strategy",06 August 2020,Hire of Interim Managers,"Corporate Services - Digital, Data & Technology",Alexander Mann Solutions Ltd,356993,13858.34,MF Devolved Admin-Hire of Interim Managers,EC2N 3AQ,VENDOR
"Department for Business, Energy and Industrial Strategy","Department for Business, Energy and Industrial Strategy",04 August 2020,Hire of Interim Managers,"Corporate Services - Digital, Data & Technology",Alexander Mann Solutions Ltd,356994,3237.06,EU Exit: Digital ADM-Hire of Interim Managers,EC2N 3AQ,VENDOR
"Department for Business, Energy and Industrial Strategy","Department for Business, Energy and Industrial Strategy",03 August 2020,Consultancy Expenditure,Corporate Services - Communications,Alexander Mann Solutions Ltd,356995,1724.58,EU Exit: CPG ADM-Consultancy Expenditure,EC2N 3AQ,VENDOR
"Department for Business, Energy and Industrial Strategy","Department for Business, Energy and Industrial Strategy",18 August 2020,Hire of Agency Staff,"Corporate Services - Digital, Data & Technology",Alexander Mann Solutions Ltd,356997,1355.42,MF Devolved Admin-Hire of Agency Staff,EC2N 3AQ,VENDOR
"Department for Business, Energy and Industrial Strategy","Department for Business, Energy and Industrial Strategy",03 August 2020,Clearing - Cost - Assets Under Construction - Internally Developed Software,Corporate Services - Finance & Portfolio,Alexander Mann Solutions Ltd,356998,4280.70,Finance Infrastructure and Maintenance-Clearing - Cost - Assets Under Construction - Internally Developed Software,EC2N 3AQ,VENDOR
"Department for Business, Energy and Industrial Strategy","Department for Business, Energy and Industrial Strategy",04 August 2020,Hire of Interim Managers,"Corporate Services - Digital, Data & Technology",Alexander Mann Solutions Ltd,356999,2586.91,EU Exit: Digital ADM-Hire of Interim Managers,EC2N 3AQ,VENDOR
"Department for Business, Energy and Industrial Strategy","Department for Business, Energy and Industrial Strategy",04 August 2020,R & D Hire of Agency Staff,Energy Transformation and Clean Growth - Science and Innovation,Alexander Mann Solutions Ltd,357000,1847.76,Innovation Delivery Cross Cutting-R & D Hire of Agency Staff,EC2N 3AQ,VENDOR
"Department for Business, Energy and Industrial Strategy","Department for Business, Energy and Industrial Strategy",05 August 2020,Hire of Agency Staff,Central - BEIS Other,Alexander Mann Solutions Ltd,357003,4639.62,MF Devolved Admin-Hire of Agency Staff,EC2N 3AQ,VENDOR
"Department for Business, Energy and Industrial Strategy","Department for Business, Energy and Industrial Strategy",05 August 2020,Hire of Agency Staff,Central - BEIS Other,Alexander Mann Solutions Ltd,357004,15244.42,MF Devolved Admin-Hire of Agency Staff,EC2N 3AQ,VENDOR
"Department for Business, Energy and Industrial Strategy","Department for Business, Energy and Industrial Strategy",28 August 2020,Stationery,Corporate Services - Finance & Portfolio,"Personal Expense, Name Withheld",357005,74.95,MF Devolved Admin-Stationery,,EMPLOYEE
"Department for Business, Energy and Industrial Strategy","Department for Business, Energy and Industrial Strategy",05 August 2020,Hire of Agency Staff,Central - BEIS Other,Alexander Mann Solutions Ltd,357006,5081.47,MF Devolved Admin-Hire of Agency Staff,EC2N 3AQ,VENDOR
"Department for Business, Energy and Industrial Strategy","Department for Business, Energy and Industrial Strategy",05 August 2020,Hire of Agency Staff,Central - BEIS Other,Alexander Mann Solutions Ltd,357007,4639.62,MF Devolved Admin-Hire of Agency Staff,EC2N 3AQ,VENDOR
"Department for Business, Energy and Industrial Strategy","Department for Business, Energy and Industrial Strategy",05 August 2020,Hire of Agency Staff,Central - BEIS Other,Alexander Mann Solutions Ltd,357008,3990.12,MF Devolved Admin-Hire of Agency Staff,EC2N 3AQ,VENDOR
"Department for Business, Energy and Industrial Strategy","Department for Business, Energy and Industrial Strategy",05 August 2020,Hire of Agency Staff,Central - BEIS Other,Alexander Mann Solutions Ltd,357009,2474.46,MF Devolved Admin-Hire of Agency Staff,EC2N 3AQ,VENDOR
"Department for Business, Energy and Industrial Strategy","Department for Business, Energy and Industrial Strategy",04 August 2020,Current Grants To Private Sector - NPISH,Energy Transformation and Clean Growth - International Energy and Climate Finance,WORLD RESOURCES INSTITUTE,357010,425173.00,International Climate Finance (ICF)-Current Grants To Private Sector - NPISH,DC 20002,GRANT
"Department for Business, Energy and Industrial Strategy","Department for Business, Energy and Industrial Strategy",05 August 2020,Hire of Agency Staff,Central - BEIS Other,Alexander Mann Solutions Ltd,357012,2463.66,MF Devolved Admin-Hire of Agency Staff,EC2N 3AQ,VENDOR
"Department for Business, Energy and Industrial Strategy","Department for Business, Energy and Industrial Strategy",06 August 2020,Hire of Interim Managers,Central - BEIS Other,Alexander Mann Solutions Ltd,357013,2463.66,MF Devolved Admin-Hire of Interim Managers,EC2N 3AQ,VENDOR
"Department for Business, Energy and Industrial Strategy","Department for Business, Energy and Industrial Strategy",05 August 2020,Hire of Agency Staff,Central - BEIS Other,Alexander Mann Solutions Ltd,357014,4639.62,MF Devolved Admin-Hire of Agency Staff,EC2N 3AQ,VENDOR
"Department for Business, Energy and Industrial Strategy","Department for Business, Energy and Industrial Strategy",05 August 2020,Hire of Agency Staff,Corporate Services - Finance & Portfolio,Alexander Mann Solutions Ltd,357015,2710.13,MF Devolved Admin-Hire of Agency Staff,EC2N 3AQ,VENDOR
"Department for Business, Energy and Industrial Strategy","Department for Business, Energy and Industrial Strategy",05 August 2020,Hire of Agency Staff,Corporate Services - Finance & Portfolio,Alexander Mann Solutions Ltd,357016,3387.66,MF Devolved Admin-Hire of Agency Staff,EC2N 3AQ,VENDOR
"Department for Business, Energy and Industrial Strategy","Department for Business, Energy and Industrial Strategy",04 August 2020,Hire of Interim Managers,"Corporate Services - Digital, Data & Technology",Alexander Mann Solutions Ltd,357017,3237.06,EU Exit: Digital ADM-Hire of Interim Managers,EC2N 3AQ,VENDOR
"Department for Business, Energy and Industrial Strategy","Department for Business, Energy and Industrial Strategy",04 August 2020,Other Professional Services,Energy and Security - Nuclear Directorate - SS,Alexander Mann Solutions Ltd,357018,413.78,MF Devolved Admin-Other Professional Services,EC2N 3AQ,VENDOR
"Department for Business, Energy and Industrial Strategy","Department for Business, Energy and Industrial Strategy",04 August 2020,Consultancy Expenditure,Vaccines Taskforce - Vaccines Taskforce,Alexander Mann Solutions Ltd,357019,2112.01,MF Devolved Admin-Consultancy Expenditure,EC2N 3AQ,VENDOR
"Department for Business, Energy and Industrial Strategy","Department for Business, Energy and Industrial Strategy",04 August 2020,Consultancy Expenditure,Vaccines Taskforce - Vaccines Taskforce,Alexander Mann Solutions Ltd,357020,23282.21,MF Devolved Admin-Consultancy Expenditure,EC2N 3AQ,VENDOR
"Department for Business, Energy and Industrial Strategy","Department for Business, Energy and Industrial Strategy",04 August 2020,Consultancy Expenditure,Vaccines Taskforce - Vaccines Taskforce,Alexander Mann Solutions Ltd,357021,1231.86,MF Devolved Admin-Consultancy Expenditure,EC2N 3AQ,VENDOR
"Department for Business, Energy and Industrial Strategy","Department for Business, Energy and Industrial Strategy",04 August 2020,Consultancy Expenditure,Vaccines Taskforce - Vaccines Taskforce,Alexander Mann Solutions Ltd,357022,4804.26,MF Devolved Admin-Consultancy Expenditure,EC2N 3AQ,VENDOR
"Department for Business, Energy and Industrial Strategy","Department for Business, Energy and Industrial Strategy",04 August 2020,Consultancy Expenditure,Vaccines Taskforce - Vaccines Taskforce,Alexander Mann Solutions Ltd,357023,36031.92,MF Devolved Admin-Consultancy Expenditure,EC2N 3AQ,VENDOR
"Department for Business, Energy and Industrial Strategy","Department for Business, Energy and Industrial Strategy",04 August 2020,Consultancy Expenditure,Vaccines Taskforce - Vaccines Taskforce,Alexander Mann Solutions Ltd,357024,12564.97,MF Devolved Admin-Consultancy Expenditure,EC2N 3AQ,VENDOR
"Department for Business, Energy and Industrial Strategy","Department for Business, Energy and Industrial Strategy",06 August 2020,Hire of Interim Managers,"Corporate Services - Digital, Data & Technology",Alexander Mann Solutions Ltd,357025,3387.66,MF Devolved Admin-Hire of Interim Managers,EC2N 3AQ,VENDOR
"Department for Business, Energy and Industrial Strategy","Department for Business, Energy and Industrial Strategy",04 August 2020,Consultancy Expenditure,Vaccines Taskforce - Vaccines Taskforce,Alexander Mann Solutions Ltd,357026,4434.67,MF Devolved Admin-Consultancy Expenditure,EC2N 3AQ,VENDOR
"Department for Business, Energy and Industrial Strategy","Department for Business, Energy and Industrial Strategy",06 August 2020,Hire of Agency Staff,Energy Transformation and Clean Growth - Industrial Energy,Alexander Mann Solutions Ltd,357027,3622.86,MF Devolved Admin-Hire of Agency Staff,EC2N 3AQ,VENDOR
"Department for Business, Energy and Industrial Strategy","Department for Business, Energy and Industrial Strategy",05 August 2020,Hire of Interim Managers,"Industrial Strategy, Science and Innovation - International Science and Innovation",Alexander Mann Solutions Ltd,357028,-3941.94,Collaboration: Unallocated-Hire of Interim Managers,EC2N 3AQ,VENDOR
"Department for Business, Energy and Industrial Strategy","Department for Business, Energy and Industrial Strategy",05 August 2020,Hire of Interim Managers,"Industrial Strategy, Science and Innovation - International Science and Innovation",Alexander Mann Solutions Ltd,357028,7883.88,Collaboration: Unallocated-Hire of Interim Managers,EC2N 3AQ,VENDOR
"Department for Business, Energy and Industrial Strategy","Department for Business, Energy and Industrial Strategy",03 August 2020,Recruitment Advice and Services,"Industrial Strategy, Science and Innovation - Business Growth",Personal Name Withheld,357030,700.00,Small Business Commissioner-Recruitment Advice and Services,AL5 2NW,VENDOR
"Department for Business, Energy and Industrial Strategy","Department for Business, Energy and Industrial Strategy",03 August 2020,Central Telecommunications Services,"Corporate Services - Digital, Data & Technology",Vodafone Ltd,357054,223658.65,MF Devolved Admin-Central Telecommunications Services,RG14 2FN,VENDOR
"Department for Business, Energy and Industrial Strategy","Department for Business, Energy and Industrial Strategy",03 August 2020,Contractor's Management Fees,Energy Transformation and Clean Growth - International Energy and Climate Finance,Ian Callaghan Associates Ltd,357056,6750.00,International Climate Finance (ICF)-Contractor's Management Fees,SP5 5PD,GRANT
"Department for Business, Energy and Industrial Strategy","Department for Business, Energy and Industrial Strategy",05 August 2020,Outsourced Programme Management,Energy Transformation and Clean Growth - Energy Efficiency and Local,The Financial Reporting Council Ltd,357057,18698.14,Electricity Demand Reduction-Outsourced Programme Management,EC2Y 5AS,VENDOR
"Department for Business, Energy and Industrial Strategy","Department for Business, Energy and Industrial Strategy",18 August 2020,Training And Development Expenditure,Corporate Services - Human Resources,CAPITA BUSINESS SERVICES LTD T/A KNOWLEDGEPOOL,357061,194.24,MF Non Devolved Admin-Training And Development Expenditure,DL1 9HN,VENDOR
"Department for Business, Energy and Industrial Strategy","Department for Business, Energy and Industrial Strategy",05 August 2020,R & D Research and Development Expenditure,"Industrial Strategy, Science and Innovation - International Science and Innovation",TUV SUD LTD,357064,433000.00,NMS Flow Programme at NRL-R & D Research and Development Expenditure,G75 0QF,VENDOR
"Department for Business, Energy and Industrial Strategy","Department for Business, Energy and Industrial Strategy",05 August 2020,R & D Research and Development Expenditure,"Industrial Strategy, Science and Innovation - International Science and Innovation",TUV SUD LTD,357065,44000.00,NMS Flow Programme at NRL-R & D Research and Development Expenditure,G75 0QF,VENDOR
"Department for Business, Energy and Industrial Strategy","Department for Business, Energy and Industrial Strategy",05 August 2020,R & D Current Grants to Private Sector - NPISH,"Industrial Strategy, Science and Innovation - International Science and Innovation",TUV SUD LTD,357066,33300.00,NEL - ISCF in-situ Flow measurements - Further Research-R & D Current Grants to Private Sector - NPISH,G75 0QF,VENDOR
"Department for Business, Energy and Industrial Strategy","Department for Business, Energy and Industrial Strategy",03 August 2020,Other Professional Services,Market Frameworks - Office for Product Safety and Standards,KANTAR UK LTD,357067,36589.20,OPSS: National Capacity Scientific and Technical-Other Professional Services,W5 1UA,VENDOR
"Department for Business, Energy and Industrial Strategy","Department for Business, Energy and Industrial Strategy",04 August 2020,Hire of Agency Staff,"Industrial Strategy, Science and Innovation - Industrial Strategy",Hays Specialist Recruitment Ltd,357068,852.48,EU Exit Core BEIS Staff: No specific DExEU issue ADM-Hire of Agency Staff,KT3 4JQ,VENDOR
"Department for Business, Energy and Industrial Strategy","Department for Business, Energy and Industrial Strategy",04 August 2020,Hire of Agency Staff,"Industrial Strategy, Science and Innovation - Industrial Strategy",Hays Specialist Recruitment Ltd,357069,1118.88,EU Exit Core BEIS Staff: No specific DExEU issue ADM-Hire of Agency Staff,KT3 4JQ,VENDOR
"Department for Business, Energy and Industrial Strategy","Department for Business, Energy and Industrial Strategy",03 August 2020,Grant-In-Aid to Arms Length Bodies,"Industrial Strategy, Science and Innovation - International Science and Innovation",UKRI - Biotechnology and Biological Science Research Council,357070,10500000.00,BBSRC Financing-Grant-In-Aid to Arms Length Bodies,SN2 1FF,WGA ONLY
"Department for Business, Energy and Industrial Strategy","Department for Business, Energy and Industrial Strategy",04 August 2020,Hire of Agency Staff,"Industrial Strategy, Science and Innovation - Industrial Strategy",Hays Specialist Recruitment Ltd,357071,1118.88,EU Exit Core BEIS Staff: No specific DExEU issue ADM-Hire of Agency Staff,KT3 4JQ,VENDOR
"Department for Business, Energy and Industrial Strategy","Department for Business, Energy and Industrial Strategy",03 August 2020,Grant-In-Aid to Arms Length Bodies,"Industrial Strategy, Science and Innovation - International Science and Innovation",UKRI - Engineering and Physical Sciences Research Council,357072,382000000.00,EPSRC Financing-Grant-In-Aid to Arms Length Bodies,SN2 1FF,VENDOR
"Department for Business, Energy and Industrial Strategy","Department for Business, Energy and Industrial Strategy",04 August 2020,Hire of Agency Staff,"Industrial Strategy, Science and Innovation - Industrial Strategy",Hays Specialist Recruitment Ltd,357073,1136.64,EU Exit Core BEIS Staff: No specific DExEU issue ADM-Hire of Agency Staff,KT3 4JQ,VENDOR
"Department for Business, Energy and Industrial Strategy","Department for Business, Energy and Industrial Strategy",03 August 2020,Grant-In-Aid to Arms Length Bodies,"Industrial Strategy, Science and Innovation - International Science and Innovation",Innovate UK,357075,20000000.00,TSB Financing-Grant-In-Aid to Arms Length Bodies,SN2 1FL,WGA ONLY
"Department for Business, Energy and Industrial Strategy","Department for Business, Energy and Industrial Strategy",04 August 2020,Hire of Agency Staff,"Industrial Strategy, Science and Innovation - Industrial Strategy",Hays Specialist Recruitment Ltd,357076,1110.00,EU Exit Core BEIS Staff: No specific DExEU issue ADM-Hire of Agency Staff,KT3 4JQ,VENDOR
"Department for Business, Energy and Industrial Strategy","Department for Business, Energy and Industrial Strategy",03 August 2020,Grant-In-Aid to Arms Length Bodies,"Industrial Strategy, Science and Innovation - International Science and Innovation",UKRI - Medical Research Council,357077,13322000.00,MRC Financing-Grant-In-Aid to Arms Length Bodies,W1N 4AL,WGA ONLY
"Department for Business, Energy and Industrial Strategy","Department for Business, Energy and Industrial Strategy",03 August 2020,Grant-In-Aid to Arms Length Bodies,"Industrial Strategy, Science and Innovation - International Science and Innovation",UKRI - Science and Technology Facilities Council,357078,30000000.00,STFC Financing-Grant-In-Aid to Arms Length Bodies,SN2 1FF,WGA ONLY
"Department for Business, Energy and Industrial Strategy","Department for Business, Energy and Industrial Strategy",04 August 2020,Hire of Agency Staff,"Industrial Strategy, Science and Innovation - Industrial Strategy",Hays Specialist Recruitment Ltd,357079,1136.64,EU Exit Core BEIS Staff: No specific DExEU issue ADM-Hire of Agency Staff,KT3 4JQ,VENDOR
"Department for Business, Energy and Industrial Strategy","Department for Business, Energy and Industrial Strategy",04 August 2020,Hire of Agency Staff,"Industrial Strategy, Science and Innovation - Industrial Strategy",Hays Specialist Recruitment Ltd,357080,852.48,EU Exit Core BEIS Staff: No specific DExEU issue ADM-Hire of Agency Staff,KT3 4JQ,VENDOR
"Department for Business, Energy and Industrial Strategy","Department for Business, Energy and Industrial Strategy",04 August 2020,Hire of Agency Staff,"Industrial Strategy, Science and Innovation - Industrial Strategy",Hays Specialist Recruitment Ltd,357081,1118.88,EU Exit Core BEIS Staff: No specific DExEU issue ADM-Hire of Agency Staff,KT3 4JQ,VENDOR
"Department for Business, Energy and Industrial Strategy","Department for Business, Energy and Industrial Strategy",04 August 2020,Hire of Agency Staff,"Industrial Strategy, Science and Innovation - Industrial Strategy",Hays Specialist Recruitment Ltd,357082,1127.76,EU Exit Core BEIS Staff: No specific DExEU issue ADM-Hire of Agency Staff,KT3 4JQ,VENDOR
"Department for Business, Energy and Industrial Strategy","Department for Business, Energy and Industrial Strategy",04 August 2020,Hire of Agency Staff,"Industrial Strategy, Science and Innovation - Industrial Strategy",Hays Specialist Recruitment Ltd,357083,1136.64,EU Exit Core BEIS Staff: No specific DExEU issue ADM-Hire of Agency Staff,KT3 4JQ,VENDOR
"Department for Business, Energy and Industrial Strategy","Department for Business, Energy and Industrial Strategy",03 August 2020,R & D Outsourced Other,Energy Transformation and Clean Growth - Science and Innovation,ITM POWER (TRADING) LTD,357084,540805.07,Innovation Delivery Industry and Carbon Capture Demonstration-R & D Outsourced Other,S7 1NT,VENDOR
"Department for Business, Energy and Industrial Strategy","Department for Business, Energy and Industrial Strategy",04 August 2020,Hire of Agency Staff,"Industrial Strategy, Science and Innovation - Industrial Strategy",Hays Specialist Recruitment Ltd,357085,1136.64,EU Exit Core BEIS Staff: No specific DExEU issue ADM-Hire of Agency Staff,KT3 4JQ,VENDOR
"Department for Business, Energy and Industrial Strategy","Department for Business, Energy and Industrial Strategy",04 August 2020,Hire of Agency Staff,"Industrial Strategy, Science and Innovation - Industrial Strategy",Hays Specialist Recruitment Ltd,357086,-947.20,EU Exit Core BEIS Staff: No specific DExEU issue ADM-Hire of Agency Staff,KT3 4JQ,VENDOR
"Department for Business, Energy and Industrial Strategy","Department for Business, Energy and Industrial Strategy",04 August 2020,Hire of Agency Staff,"Industrial Strategy, Science and Innovation - Industrial Strategy",Hays Specialist Recruitment Ltd,357086,2083.84,EU Exit Core BEIS Staff: No specific DExEU issue ADM-Hire of Agency Staff,KT3 4JQ,VENDOR
"Department for Business, Energy and Industrial Strategy","Department for Business, Energy and Industrial Strategy",04 August 2020,Hire of Agency Staff,"Industrial Strategy, Science and Innovation - Industrial Strategy",Hays Specialist Recruitment Ltd,357087,1136.64,EU Exit Core BEIS Staff: No specific DExEU issue ADM-Hire of Agency Staff,KT3 4JQ,VENDOR
"Department for Business, Energy and Industrial Strategy","Department for Business, Energy and Industrial Strategy",04 August 2020,Hire of Agency Staff,"Industrial Strategy, Science and Innovation - Industrial Strategy",Hays Specialist Recruitment Ltd,357089,1136.64,EU Exit Core BEIS Staff: No specific DExEU issue ADM-Hire of Agency Staff,KT3 4JQ,VENDOR
"Department for Business, Energy and Industrial Strategy","Department for Business, Energy and Industrial Strategy",05 August 2020,R & D Research and Development Expenditure,"Industrial Strategy, Science and Innovation - International Science and Innovation",LGC LTD,357091,80734.00,NMS Government Chemist Programme at LGC-R & D Research and Development Expenditure,TW11 0LY,GRANT
"Department for Business, Energy and Industrial Strategy","Department for Business, Energy and Industrial Strategy",05 August 2020,R & D Current Grants to Private Sector - NPISH,"Industrial Strategy, Science and Innovation - International Science and Innovation",LGC LTD,357092,25000.00,NPL - ISCF Other-R & D Current Grants to Private Sector - NPISH,TW11 0LY,GRANT
"Department for Business, Energy and Industrial Strategy","Department for Business, Energy and Industrial Strategy",05 August 2020,R & D Research and Development Expenditure,"Industrial Strategy, Science and Innovation - International Science and Innovation",LGC LTD,357093,572820.00,NMS Programme for Chemical & Biological Metrology at LGC-R & D Research and Development Expenditure,TW11 0LY,GRANT
"Department for Business, Energy and Industrial Strategy","Department for Business, Energy and Industrial Strategy",05 August 2020,R & D Current Grants to Private Sector - NPISH,"Industrial Strategy, Science and Innovation - International Science and Innovation",LGC LTD,357094,9583.00,NPL - ISCF Other-R & D Current Grants to Private Sector - NPISH,TW11 0LY,GRANT
"Department for Business, Energy and Industrial Strategy","Department for Business, Energy and Industrial Strategy",03 August 2020,Outsourced Programme Management,Energy Transformation and Clean Growth - Energy Efficiency and Local,The Retrofit Academy CIC,357098,75000.00,DWP Warm Home Discount Delivery-Outsourced Programme Management,ST17 4AL,VENDOR
"Department for Business, Energy and Industrial Strategy","Department for Business, Energy and Industrial Strategy",04 August 2020,Publications,"Industrial Strategy, Science and Innovation - Government Office for Science",JONES YARRELL LEADENHALL (Menzies Distribution Ltd),357099,120.36,MF Devolved Admin-Publications,EH12 9DJ,VENDOR
"Department for Business, Energy and Industrial Strategy","Department for Business, Energy and Industrial Strategy",03 August 2020,Health and Safety Consultancy,Corporate Services - Human Resources,Action for Happiness Trading Ltd,357101,2040.00,MF Non Devolved Admin-Health and Safety Consultancy,EC1N 2SW,VENDOR
"Department for Business, Energy and Industrial Strategy","Department for Business, Energy and Industrial Strategy",03 August 2020,Publications,Business Sectors - Advanced Manufacturing,JONES YARRELL LEADENHALL (Menzies Distribution Ltd),357102,12.51,MF Devolved Admin-Publications,EH12 9DJ,VENDOR
"Department for Business, Energy and Industrial Strategy","Department for Business, Energy and Industrial Strategy",03 August 2020,Other Media Costs,"Industrial Strategy, Science and Innovation - Science and Research",JONES YARRELL LEADENHALL (Menzies Distribution Ltd),357103,25.50,MF Devolved Admin-Other Media Costs,EH12 9DJ,VENDOR
"Department for Business, Energy and Industrial Strategy","Department for Business, Energy and Industrial Strategy",04 August 2020,Advertising,"Trade, Europe and Analysis - Economic Partnerships Directorate",FINANCIAL TIMES LTD (THE),357104,-9900.00,EU Exit Core BEIS Staff: EU Exit Programme ADM-Advertising,EC4M 9BT,VENDOR
"Department for Business, Energy and Industrial Strategy","Department for Business, Energy and Industrial Strategy",04 August 2020,Advertising,"Trade, Europe and Analysis - Economic Partnerships Directorate",FINANCIAL TIMES LTD (THE),357104,21780.00,EU Exit Core BEIS Staff: EU Exit Programme ADM-Advertising,EC4M 9BT,VENDOR
"Department for Business, Energy and Industrial Strategy","Department for Business, Energy and Industrial Strategy",04 August 2020,Misc. Non Procurement Spend,Corporate Services - Human Resources,MIND GYM LTD,357105,-2850.00,MF Non Devolved Admin-Misc. Non Procurement Spend,W8 7RG,VENDOR
"Department for Business, Energy and Industrial Strategy","Department for Business, Energy and Industrial Strategy",04 August 2020,Misc. Non Procurement Spend,Corporate Services - Human Resources,MIND GYM LTD,357105,-1200.00,MF Non Devolved Admin-Misc. Non Procurement Spend,W8 7RG,VENDOR
"Department for Business, Energy and Industrial Strategy","Department for Business, Energy and Industrial Strategy",04 August 2020,Misc. Non Procurement Spend,Corporate Services - Human Resources,MIND GYM LTD,357105,2350.00,MF Non Devolved Admin-Misc. Non Procurement Spend,W8 7RG,VENDOR
"Department for Business, Energy and Industrial Strategy","Department for Business, Energy and Industrial Strategy",04 August 2020,Misc. Non Procurement Spend,Corporate Services - Human Resources,MIND GYM LTD,357105,3700.00,MF Non Devolved Admin-Misc. Non Procurement Spend,W8 7RG,VENDOR
"Department for Business, Energy and Industrial Strategy","Department for Business, Energy and Industrial Strategy",04 August 2020,Recruitment Advice and Services,Corporate Services - Human Resources,Cabinet Office,357106,1096.75,MF Non Devolved Admin-Recruitment Advice and Services,FY1 9JN,WGA ONLY
"Department for Business, Energy and Industrial Strategy","Department for Business, Energy and Industrial Strategy",03 August 2020,Other Professional Services,Energy and Security - Nuclear Directorate - HSQ,Office for Nuclear Regulation,357107,594243.51,EU Exit: Euratrom PROG-Other Professional Services,FY1 9JN,VENDOR
"Department for Business, Energy and Industrial Strategy","Department for Business, Energy and Industrial Strategy",03 August 2020,Subsistence UK,Energy Transformation and Clean Growth - International Energy and Climate Finance,"Personal Expense, Name Withheld",357108,2.44,International Climate Finance (ICF)-Subsistence UK,,EMPLOYEE
"Department for Business, Energy and Industrial Strategy","Department for Business, Energy and Industrial Strategy",03 August 2020,Subsistence UK,Energy Transformation and Clean Growth - International Energy and Climate Finance,"Personal Expense, Name Withheld",357108,18.95,International Climate Finance (ICF)-Subsistence UK,,EMPLOYEE
"Department for Business, Energy and Industrial Strategy","Department for Business, Energy and Industrial Strategy",03 August 2020,Taxi Services UK,Energy Transformation and Clean Growth - International Energy and Climate Finance,"Personal Expense, Name Withheld",357108,26.00,International Climate Finance (ICF)-Taxi Services UK,,EMPLOYEE
"Department for Business, Energy and Industrial Strategy","Department for Business, Energy and Industrial Strategy",03 August 2020,Stationery,"Corporate Services - Policy, Delivery and Private Office","Personal Expense, Name Withheld",357109,70.12,MF Devolved Admin-Stationery,,EMPLOYEE
"Department for Business, Energy and Industrial Strategy","Department for Business, Energy and Industrial Strategy",03 August 2020,Stationery,Corporate Services - Communications,"Personal Expense, Name Withheld",357110,55.14,MF Devolved Admin-Stationery,,EMPLOYEE
"Department for Business, Energy and Industrial Strategy","Department for Business, Energy and Industrial Strategy",03 August 2020,Professional Subscriptions,Corporate Services - Organisational Development,"Personal Expense, Name Withheld",357111,185.00,MF Devolved Admin-Professional Subscriptions,,EMPLOYEE
"Department for Business, Energy and Industrial Strategy","Department for Business, Energy and Industrial Strategy",03 August 2020,Taxi Services UK,Business Sectors - Office for Life Sciences,"Personal Expense, Name Withheld",357112,16.54,MF Devolved Admin-Taxi Services UK,,EMPLOYEE
"Department for Business, Energy and Industrial Strategy","Department for Business, Energy and Industrial Strategy",03 August 2020,Taxi Services UK,Business Sectors - Office for Life Sciences,"Personal Expense, Name Withheld",357113,35.36,MF Devolved Admin-Taxi Services UK,,EMPLOYEE
"Department for Business, Energy and Industrial Strategy","Department for Business, Energy and Industrial Strategy",03 August 2020,Stationery,Business Sectors - Office for Life Sciences,"Personal Expense, Name Withheld",357114,85.99,MF Devolved Admin-Stationery,,EMPLOYEE
"Department for Business, Energy and Industrial Strategy","Department for Business, Energy and Industrial Strategy",03 August 2020,Stationery,Energy Transformation and Clean Growth - Clean Heat,"Personal Expense, Name Withheld",357115,109.99,MF Devolved Admin-Stationery,,EMPLOYEE
"Department for Business, Energy and Industrial Strategy","Department for Business, Energy and Industrial Strategy",03 August 2020,EXP - Miscellaneous Expenditure - iExpenses,"Industrial Strategy, Science and Innovation - Business Growth","Personal Expense, Name Withheld",357116,13.33,MF Devolved Admin-EXP - Miscellaneous Expenditure - iExpenses,,EMPLOYEE
"Department for Business, Energy and Industrial Strategy","Department for Business, Energy and Industrial Strategy",03 August 2020,EXP - Miscellaneous Expenditure - iExpenses,"Industrial Strategy, Science and Innovation - Business Growth","Personal Expense, Name Withheld",357117,16.99,MF Devolved Admin-EXP - Miscellaneous Expenditure - iExpenses,,EMPLOYEE
"Department for Business, Energy and Industrial Strategy","Department for Business, Energy and Industrial Strategy",03 August 2020,Stationery,Business Sectors - Cities and Local Growth,"Personal Expense, Name Withheld",357118,138.98,MF Devolved Admin-Stationery,,EMPLOYEE
"Department for Business, Energy and Industrial Strategy","Department for Business, Energy and Industrial Strategy",03 August 2020,Stationery,Market Frameworks - Office for Product Safety and Standards,"Personal Expense, Name Withheld",357120,7.99,OPSS: National Capacity Intelligence-Stationery,,EMPLOYEE
"Department for Business, Energy and Industrial Strategy","Department for Business, Energy and Industrial Strategy",03 August 2020,Postage,Market Frameworks - Office of Manpower Economics,"Personal Expense, Name Withheld",357121,7.32,MF Devolved Admin-Postage,,EMPLOYEE
"Department for Business, Energy and Industrial Strategy","Department for Business, Energy and Industrial Strategy",03 August 2020,Stationery,"Trade, Europe and Analysis - Trade and Investment Negotiations Goods","Personal Expense, Name Withheld",357123,92.40,MF Devolved Admin-Stationery,,EMPLOYEE
"Department for Business, Energy and Industrial Strategy","Department for Business, Energy and Industrial Strategy",03 August 2020,Stationery,"Trade, Europe and Analysis - Trade and Europe Portfolio Directorate","Personal Expense, Name Withheld",357124,243.95,EU Exit Core BEIS Staff: EU Exit Programme ADM-Stationery,,EMPLOYEE
"Department for Business, Energy and Industrial Strategy","Department for Business, Energy and Industrial Strategy",04 August 2020,Current Grants To Local Government,Energy Transformation and Clean Growth - Energy Efficiency and Local,CITY OF WOLVERHAMPTON COUNCIL,357149,46900.00,Heat Network Delivery Unit-Current Grants To Local Government,WV1 1RL,GRANT
"Department for Business, Energy and Industrial Strategy","Department for Business, Energy and Industrial Strategy",05 August 2020,Travel Booking,Business Sectors - EU Exit Business Readiness,Foreign and Commonwealth Office (FCO),357150,803.07,EU Exit Core BEIS Staff: EU Exit Programme ADM-Travel Booking,MK10 1PX,WGA ONLY
"Department for Business, Energy and Industrial Strategy","Department for Business, Energy and Industrial Strategy",04 August 2020,Central Telecommunications Services,"Corporate Services - Digital, Data & Technology",DAISY COMMUNICATIONS LTD,357151,49.87,MF Devolved Admin-Central Telecommunications Services,BB9 5SR,VENDOR
"Department for Business, Energy and Industrial Strategy","Department for Business, Energy and Industrial Strategy",04 August 2020,Central Telecommunications Services,"Corporate Services - Digital, Data & Technology",DAISY COMMUNICATIONS LTD,357152,49.87,MF Devolved Admin-Central Telecommunications Services,BB9 5SR,VENDOR
"Department for Business, Energy and Industrial Strategy","Department for Business, Energy and Industrial Strategy",04 August 2020,Central Telecommunications Services,"Corporate Services - Digital, Data & Technology",DAISY COMMUNICATIONS LTD,357153,49.87,MF Devolved Admin-Central Telecommunications Services,BB9 5SR,VENDOR
"Department for Business, Energy and Industrial Strategy","Department for Business, Energy and Industrial Strategy",04 August 2020,Central Telecommunications Services,"Corporate Services - Digital, Data & Technology",DAISY COMMUNICATIONS LTD,357154,1205.22,MF Devolved Admin-Central Telecommunications Services,BB9 5SR,VENDOR
"Department for Business, Energy and Industrial Strategy","Department for Business, Energy and Industrial Strategy",04 August 2020,Publications,"Corporate Services - Policy, Delivery and Private Office",JONES YARRELL LEADENHALL (Menzies Distribution Ltd),357155,304.37,MF Devolved Admin-Publications,EH12 9DJ,VENDOR
"Department for Business, Energy and Industrial Strategy","Department for Business, Energy and Industrial Strategy",04 August 2020,Central Telecommunications Services,"Corporate Services - Digital, Data & Technology",DAISY COMMUNICATIONS LTD,357156,49.87,MF Devolved Admin-Central Telecommunications Services,BB9 5SR,VENDOR
"Department for Business, Energy and Industrial Strategy","Department for Business, Energy and Industrial Strategy",05 August 2020,Other Professional Services,"Industrial Strategy, Science and Innovation - Business Growth",British Business Financial Services Ltd,357157,-110000.00,Central Functions-Other Professional Services,S1 2GQ,VENDOR
"Department for Business, Energy and Industrial Strategy","Department for Business, Energy and Industrial Strategy",05 August 2020,Other Professional Services,"Industrial Strategy, Science and Innovation - Business Growth",British Business Financial Services Ltd,357157,1430000.00,Central Functions-Other Professional Services,S1 2GQ,VENDOR
"Department for Business, Energy and Industrial Strategy","Department for Business, Energy and Industrial Strategy",04 August 2020,Current Grants To Local Government,Market Frameworks - Office for Product Safety and Standards,ESSEX COUNTY COUNCIL,357158,21378.00,OPSS: National Capacity Enforcement-Current Grants To Local Government,CM1 1JZ,WGA ONLY
"Department for Business, Energy and Industrial Strategy","Department for Business, Energy and Industrial Strategy",04 August 2020,Business Management Advice,Energy Transformation and Clean Growth - Energy Efficiency and Local,ICF Consulting Services Ltd,357160,26272.61,Industrial Heat Policy And Research-Business Management Advice,EC4R 1BE,VENDOR
"Department for Business, Energy and Industrial Strategy","Department for Business, Energy and Industrial Strategy",04 August 2020,Training And Development Expenditure,Corporate Services - Human Resources,LSR TRAINING & DEVELOPMENT LTD,357163,350.00,MF Non Devolved Admin-Training And Development Expenditure,YO42 4RE,VENDOR
"Department for Business, Energy and Industrial Strategy","Department for Business, Energy and Industrial Strategy",04 August 2020,Clearing Account   - Cost - Information Technology,Market Frameworks - Office for Product Safety and Standards,Kalpaitch Ltd,357165,18480.00,OPSS: Primary Authority-Clearing Account   - Cost - Information Technology,SE5 9PG,VENDOR
"Department for Business, Energy and Industrial Strategy","Department for Business, Energy and Industrial Strategy",04 August 2020,Training And Development Expenditure,Corporate Services - Human Resources,LSR TRAINING & DEVELOPMENT LTD,357166,350.00,MF Non Devolved Admin-Training And Development Expenditure,YO42 4RE,VENDOR
"Department for Business, Energy and Industrial Strategy","Department for Business, Energy and Industrial Strategy",12 August 2020,Clearing Account   - Cost - Computer Equipment,"Corporate Services - Digital, Data & Technology",Insight Direct UK Limited,357168,255655.02,Digital Infrastructure and Maintenance-Clearing Account   - Cost - Computer Equipment,UB8 1PH,VENDOR
"Department for Business, Energy and Industrial Strategy","Department for Business, Energy and Industrial Strategy",04 August 2020,Printing,Market Frameworks - Office for Product Safety and Standards,Davenport Paper Co Ltd T/A Davpack,357171,622.08,OPSS: Innovating for Growth-Printing,DE21 7BF,VENDOR
"Department for Business, Energy and Industrial Strategy","Department for Business, Energy and Industrial Strategy",05 August 2020,Training And Development Expenditure,Corporate Services - Human Resources,ROYAL STATISTICAL SOCIETY,357175,102.00,MF Non Devolved Admin-Training And Development Expenditure,EC1Y 8LX,VENDOR
"Department for Business, Energy and Industrial Strategy","Department for Business, Energy and Industrial Strategy",04 August 2020,Payroll OGD Recharge,Corporate Payments,LEGAL AND GENERAL ASSURANCE SOCIETY LTD,357176,119207.86,Default-Payroll OGD Recharge,CF24 0EB,VENDOR
"Department for Business, Energy and Industrial Strategy","Department for Business, Energy and Industrial Strategy",04 August 2020,Payroll OGD Recharge,Corporate Payments,LEGAL AND GENERAL ASSURANCE SOCIETY LTD,357177,11646.57,Default-Payroll OGD Recharge,CF24 0EB,VENDOR
"Department for Business, Energy and Industrial Strategy","Department for Business, Energy and Industrial Strategy",03 August 2020,International Subscriptions,"Corporate Services - Digital, Data & Technology",RELX (UK) LTD,357184,-7154.40,MF Devolved Admin-International Subscriptions,SM2 5AS,VENDOR
"Department for Business, Energy and Industrial Strategy","Department for Business, Energy and Industrial Strategy",03 August 2020,International Subscriptions,"Corporate Services - Digital, Data & Technology",RELX (UK) LTD,357184,14308.80,MF Devolved Admin-International Subscriptions,SM2 5AS,VENDOR
"Department for Business, Energy and Industrial Strategy","Department for Business, Energy and Industrial Strategy",05 August 2020,Additions - Other Loans - Central Government,"Industrial Strategy, Science and Innovation - Business Growth",THE START-UP LOANS COMPANY,357185,6000000.00,British Business Bank NB-Additions - Other Loans - Central Government,S1 2GQ,VENDOR
"Department for Business, Energy and Industrial Strategy","Department for Business, Energy and Industrial Strategy",04 August 2020,Grant-In-Aid to Arms Length Bodies,"Industrial Strategy, Science and Innovation - Business Growth",THE START-UP LOANS COMPANY,357186,1000000.00,British Business Bank NB-Grant-In-Aid to Arms Length Bodies,S1 2GQ,VENDOR
"Department for Business, Energy and Industrial Strategy","Department for Business, Energy and Industrial Strategy",03 August 2020,Central Telecommunications Services,Corporate Services - Communications,BRITISH TELECOMMUNICATIONS plc (BT),357187,45.46,MF Devolved Admin-Central Telecommunications Services,DH98 1BT,VENDOR
"Department for Business, Energy and Industrial Strategy","Department for Business, Energy and Industrial Strategy",13 August 2020,R & D Outsourced Other,Energy Transformation and Clean Growth - Science and Innovation,BSI Standards Ltd,357188,19945.00,Innovation Delivery Cross Cutting-R & D Outsourced Other,MK1 9EL,VENDOR
"Department for Business, Energy and Industrial Strategy","Department for Business, Energy and Industrial Strategy",04 August 2020,Central Telecommunications Services,Corporate Services - Communications,BRITISH TELECOMMUNICATIONS plc (BT),357189,77.89,MF Devolved Admin-Central Telecommunications Services,DH98 1BT,VENDOR
"Department for Business, Energy and Industrial Strategy","Department for Business, Energy and Industrial Strategy",04 August 2020,Central Telecommunications Services,Corporate Services - Communications,BRITISH TELECOMMUNICATIONS plc (BT),357189,85.46,MF Devolved Admin-Central Telecommunications Services,DH98 1BT,VENDOR
"Department for Business, Energy and Industrial Strategy","Department for Business, Energy and Industrial Strategy",04 August 2020,Training And Development Expenditure,Corporate Services - Human Resources,UCL CONSULTANTS LTD,357191,25460.00,MF Non Devolved Admin-Training And Development Expenditure,W1T 4TP,GRANT
"Department for Business, Energy and Industrial Strategy","Department for Business, Energy and Industrial Strategy",04 August 2020,R & D Current Grants to Central Government,"Industrial Strategy, Science and Innovation - International Science and Innovation",Foreign and Commonwealth Office (FCO),357192,-7272.20,NEWTON FUND - Colombia-R & D Current Grants to Central Government,MK10 1PX,WGA ONLY
"Department for Business, Energy and Industrial Strategy","Department for Business, Energy and Industrial Strategy",04 August 2020,R & D Current Grants to Central Government,"Industrial Strategy, Science and Innovation - International Science and Innovation",Foreign and Commonwealth Office (FCO),357192,14546.40,NEWTON FUND - Colombia-R & D Current Grants to Central Government,MK10 1PX,WGA ONLY
"Department for Business, Energy and Industrial Strategy","Department for Business, Energy and Industrial Strategy",04 August 2020,Consultancy Expenditure,"Trade, Europe and Analysis - Analysis Directorate",Faculty Science Ltd,357194,120000.00,MF Devolved Admin-Consultancy Expenditure,W1G 9XS,VENDOR
"Department for Business, Energy and Industrial Strategy","Department for Business, Energy and Industrial Strategy",05 August 2020,Coal Provision Payments Suspense,Energy and Security - Energy Development and Resilience,BEIS Coal Health,357196,800000.00,Liabilities To Ex-British Coal Employees And Other Liabilities Transferred From-Coal Provision Payments Suspense,SW1H 0ET,VENDOR
"Department for Business, Energy and Industrial Strategy","Department for Business, Energy and Industrial Strategy",13 August 2020,Training And Development Expenditure,Corporate Services - Human Resources,Purdue University,357197,1351.30,MF Non Devolved Admin-Training And Development Expenditure,47907-2056,VENDOR
"Department for Business, Energy and Industrial Strategy","Department for Business, Energy and Industrial Strategy",04 August 2020,Capital Grants to Private Sector - Companies,Energy Transformation and Clean Growth - Energy Efficiency and Local,SALIX FINANCE LTD,357198,5000000.00,Public Sector Energy Efficiency Loan Scheme-Capital Grants to Private Sector - Companies,EC4R 9AN,GRANT
"Department for Business, Energy and Industrial Strategy","Department for Business, Energy and Industrial Strategy",05 August 2020,R & D Research and Development Expenditure,"Industrial Strategy, Science and Innovation - International Science and Innovation",MET OFFICE,357199,8043166.67,Public Weather Service: Contract-R & D Research and Development Expenditure,EX1 3PB,WGA ONLY
"Department for Business, Energy and Industrial Strategy","Department for Business, Energy and Industrial Strategy",04 August 2020,Clarity Travel Management,"Corporate Services - Digital, Data & Technology",Corporate Travel Management (North) Ltd,357200,50.27,Default-Clarity Travel Management,BD1 5HQ,VENDOR
"Department for Business, Energy and Industrial Strategy","Department for Business, Energy and Industrial Strategy",04 August 2020,Clarity Travel Management,"Corporate Services - Digital, Data & Technology",Corporate Travel Management (North) Ltd,357200,17643.27,Default-Clarity Travel Management,BD1 5HQ,VENDOR
"Department for Business, Energy and Industrial Strategy","Department for Business, Energy and Industrial Strategy",05 August 2020,R & D Research and Development Expenditure,"Industrial Strategy, Science and Innovation - International Science and Innovation",MET OFFICE,357201,1518333.33,Hadley Centre-R & D Research and Development Expenditure,EX1 3PB,WGA ONLY
"Department for Business, Energy and Industrial Strategy","Department for Business, Energy and Industrial Strategy",05 August 2020,R & D Research and Development Expenditure,"Industrial Strategy, Science and Innovation - International Science and Innovation",MET OFFICE,357202,193641.78,Space Weather Service-R & D Research and Development Expenditure,EX1 3PB,WGA ONLY
"Department for Business, Energy and Industrial Strategy","Department for Business, Energy and Industrial Strategy",07 August 2020,Grant-In-Aid to Arms Length Bodies,Energy and Security - Energy Development and Resilience,Coal Authority,357203,4500000.00,Payment Of Grant in Aid To The Coal Authority-Grant-In-Aid to Arms Length Bodies,NG18 4RG,VENDOR
"Department for Business, Energy and Industrial Strategy","Department for Business, Energy and Industrial Strategy",04 August 2020,Eye Tests,Corporate Services - Commercial & Operations,"Personal Expense, Name Withheld",357204,65.00,Default-Eye Tests,,EMPLOYEE
"Department for Business, Energy and Industrial Strategy","Department for Business, Energy and Industrial Strategy",04 August 2020,Stationery,Market Frameworks - Business Frameworks,"Personal Expense, Name Withheld",357205,96.00,MF Devolved Admin-Stationery,,EMPLOYEE
"Department for Business, Energy and Industrial Strategy","Department for Business, Energy and Industrial Strategy",04 August 2020,Stationery,"Trade, Europe and Analysis - Analysis Directorate","Personal Expense, Name Withheld",357206,122.00,Default-Stationery,,EMPLOYEE
"Department for Business, Energy and Industrial Strategy","Department for Business, Energy and Industrial Strategy",04 August 2020,Subsistence UK,Market Frameworks - Office of Manpower Economics,"Personal Expense, Name Withheld",357207,51.48,MF Devolved Admin-Subsistence UK,,
"Department for Business, Energy and Industrial Strategy","Department for Business, Energy and Industrial Strategy",04 August 2020,Stationery,"Trade, Europe and Analysis - EU Trade Negotiation Analysis","Personal Expense, Name Withheld",357208,155.84,Default-Stationery,,EMPLOYEE
"Department for Business, Energy and Industrial Strategy","Department for Business, Energy and Industrial Strategy",04 August 2020,Stationery,Corporate Services - Commercial & Operations,"Personal Expense, Name Withheld",357209,103.98,MF Devolved Admin-Stationery,,EMPLOYEE
"Department for Business, Energy and Industrial Strategy","Department for Business, Energy and Industrial Strategy",04 August 2020,Telecoms,Market Frameworks - Office of Manpower Economics,"Personal Expense, Name Withheld",357211,17.00,MF Devolved Admin-Telecoms,,EMPLOYEE
"Department for Business, Energy and Industrial Strategy","Department for Business, Energy and Industrial Strategy",04 August 2020,Training And Development Expenditure,Corporate Services - Human Resources,KPMG LLP,357215,1427.00,MF Non Devolved Admin-Training And Development Expenditure,E14 5GL,VENDOR
"Department for Business, Energy and Industrial Strategy","Department for Business, Energy and Industrial Strategy",04 August 2020,Training And Development Expenditure,Corporate Services - Human Resources,KPMG LLP,357218,1427.00,MF Non Devolved Admin-Training And Development Expenditure,E14 5GL,VENDOR
"Department for Business, Energy and Industrial Strategy","Department for Business, Energy and Industrial Strategy",04 August 2020,Current Grants To Central Government,Energy Transformation and Clean Growth - Clean Heat,OFFICE OF GAS AND ELECTRICITY MARKETS (OFGEM),357219,67607606.00,RHI Non-Domestic AME Payments-Current Grants To Central Government,SW1P 3GE,GRANT
"Department for Business, Energy and Industrial Strategy","Department for Business, Energy and Industrial Strategy",04 August 2020,R & D Current Grants to Private Sector - NPISH,"Industrial Strategy, Science and Innovation - International Science and Innovation",ACADEMY OF MEDICAL SCIENCES,357222,40800.00,Academy of Medical Sciences - GCRF - Coherence & Impact-R & D Current Grants to Private Sector - NPISH,W1B 1QH,GRANT
"Department for Business, Energy and Industrial Strategy","Department for Business, Energy and Industrial Strategy",05 August 2020,Publications,"Trade, Europe and Analysis - Analysis Directorate",JONES YARRELL LEADENHALL (Menzies Distribution Ltd),357223,119.71,MF Devolved Admin-Publications,EH12 9DJ,VENDOR
"Department for Business, Energy and Industrial Strategy","Department for Business, Energy and Industrial Strategy",07 August 2020,R & D Current Grants to Private Sector - NPISH,"Industrial Strategy, Science and Innovation - International Science and Innovation",ACADEMY OF MEDICAL SCIENCES,357224,-534383.00,Academy of Medical Sciences - Global Challenges Research Fund-R & D Current Grants to Private Sector - NPISH,W1B 1QH,GRANT
"Department for Business, Energy and Industrial Strategy","Department for Business, Energy and Industrial Strategy",07 August 2020,R & D Administration of Grants and Awards,"Industrial Strategy, Science and Innovation - International Science and Innovation",ACADEMY OF MEDICAL SCIENCES,357224,46126.00,Academy of Medical Sciences - Global Challenges Research Fund-R & D Administration of Grants and Awards,W1B 1QH,GRANT
"Department for Business, Energy and Industrial Strategy","Department for Business, Energy and Industrial Strategy",07 August 2020,R & D Current Grants to Private Sector - NPISH,"Industrial Strategy, Science and Innovation - International Science and Innovation",ACADEMY OF MEDICAL SCIENCES,357224,1022640.00,Academy of Medical Sciences - Global Challenges Research Fund-R & D Current Grants to Private Sector - NPISH,W1B 1QH,GRANT
"Department for Business, Energy and Industrial Strategy","Department for Business, Energy and Industrial Strategy",04 August 2020,R & D Current Grants to Private Sector - NPISH,"Industrial Strategy, Science and Innovation - International Science and Innovation",The Royal Society,357225,450000.00,Royal Society-R & D Current Grants to Private Sector - NPISH,SW1Y 5AG,GRANT
"Department for Business, Energy and Industrial Strategy","Department for Business, Energy and Industrial Strategy",05 August 2020,R & D Current Grants to Private Sector - NPISH,"Industrial Strategy, Science and Innovation - International Science and Innovation",THE BRITISH ACADEMY,357226,1987182.00,British Academy-R & D Current Grants to Private Sector - NPISH,SW1Y 5AH,VENDOR
"Department for Business, Energy and Industrial Strategy","Department for Business, Energy and Industrial Strategy",05 August 2020,R & D Current Grants to Private Sector - NPISH,"Industrial Strategy, Science and Innovation - International Science and Innovation",ROYAL ACADEMY OF ENGINEERING RAE,357227,633868.00,Royal Academy Of Engineering-R & D Current Grants to Private Sector - NPISH,SW1Y 5DG,VENDOR
"Department for Business, Energy and Industrial Strategy","Department for Business, Energy and Industrial Strategy",04 August 2020,Hire of Agency Staff,"Industrial Strategy, Science and Innovation - Industrial Strategy",Hays Specialist Recruitment Ltd,357228,-23582.32,EU Exit Core BEIS Staff: No specific DExEU issue ADM-Hire of Agency Staff,KT3 4JQ,VENDOR
"Department for Business, Energy and Industrial Strategy","Department for Business, Energy and Industrial Strategy",04 August 2020,Hire of Agency Staff,"Industrial Strategy, Science and Innovation - Industrial Strategy",Hays Specialist Recruitment Ltd,357228,22297.68,EU Exit Core BEIS Staff: No specific DExEU issue ADM-Hire of Agency Staff,KT3 4JQ,VENDOR
"Department for Business, Energy and Industrial Strategy","Department for Business, Energy and Industrial Strategy",04 August 2020,Hire of Agency Staff,"Industrial Strategy, Science and Innovation - Industrial Strategy",Hays Specialist Recruitment Ltd,357229,1101.12,EU Exit Core BEIS Staff: No specific DExEU issue ADM-Hire of Agency Staff,KT3 4JQ,VENDOR
"Department for Business, Energy and Industrial Strategy","Department for Business, Energy and Industrial Strategy",04 August 2020,Additions - Shares and Equities - Central Government,"Industrial Strategy, Science and Innovation - Business Growth",British Business Bank PLC,357230,21000000.00,British Business Bank NB-Additions - Shares and Equities - Central Government,SW1H 0ET,GRANT
"Department for Business, Energy and Industrial Strategy","Department for Business, Energy and Industrial Strategy",04 August 2020,EXP - Miscellaneous Expenditure - iExpenses,"Trade, Europe and Analysis - Economic Partnerships Directorate","Personal Expense, Name Withheld",357239,206.93,MF Devolved Admin-EXP - Miscellaneous Expenditure - iExpenses,,EMPLOYEE
"Department for Business, Energy and Industrial Strategy","Department for Business, Energy and Industrial Strategy",04 August 2020,Stationery,"Trade, Europe and Analysis - EU Trade Negotiation Analysis","Personal Expense, Name Withheld",357240,99.99,EU Exit Core BEIS Staff: EU Exit Programme ADM-Stationery,,EMPLOYEE
"Department for Business, Energy and Industrial Strategy","Department for Business, Energy and Industrial Strategy",04 August 2020,Stationery,"Energy and Security - Energy Security, Networks and Markets","Personal Expense, Name Withheld",357241,35.00,MF Devolved Admin-Stationery,,EMPLOYEE
"Department for Business, Energy and Industrial Strategy","Department for Business, Energy and Industrial Strategy",04 August 2020,EXP - Miscellaneous Expenditure - iExpenses,Market Frameworks - Business Frameworks,"Personal Expense, Name Withheld",357242,200.00,MF Devolved Admin-EXP - Miscellaneous Expenditure - iExpenses,,EMPLOYEE
"Department for Business, Energy and Industrial Strategy","Department for Business, Energy and Industrial Strategy",04 August 2020,EXP - Miscellaneous Expenditure - iExpenses,Energy Transformation and Clean Growth - International Climate Change,"Personal Expense, Name Withheld",357243,99.99,MF Devolved Admin-EXP - Miscellaneous Expenditure - iExpenses,,EMPLOYEE
"Department for Business, Energy and Industrial Strategy","Department for Business, Energy and Industrial Strategy",04 August 2020,Stationery,Corporate Services - DG CS Office,"Personal Expense, Name Withheld",357244,109.00,MF Devolved Admin-Stationery,,EMPLOYEE
"Department for Business, Energy and Industrial Strategy","Department for Business, Energy and Industrial Strategy",04 August 2020,EXP - Miscellaneous Expenditure - iExpenses,Energy and Security - Nuclear Directorate - HSQ,"Personal Expense, Name Withheld",357245,38.96,EU Exit Core BEIS Staff: Euratom Workstream ADM-EXP - Miscellaneous Expenditure - iExpenses,,EMPLOYEE
"Department for Business, Energy and Industrial Strategy","Department for Business, Energy and Industrial Strategy",04 August 2020,Subsistence UK,Energy and Security - Nuclear Directorate - HSQ,"Personal Expense, Name Withheld",357246,4.45,EU Exit Core BEIS Staff: Euratom Workstream ADM-Subsistence UK,,EMPLOYEE
"Department for Business, Energy and Industrial Strategy","Department for Business, Energy and Industrial Strategy",04 August 2020,Subsistence UK,Energy and Security - Nuclear Directorate - HSQ,"Personal Expense, Name Withheld",357246,4.60,EU Exit Core BEIS Staff: Euratom Workstream ADM-Subsistence UK,,EMPLOYEE
"Department for Business, Energy and Industrial Strategy","Department for Business, Energy and Industrial Strategy",04 August 2020,Subsistence UK,Energy and Security - Nuclear Directorate - HSQ,"Personal Expense, Name Withheld",357246,9.95,EU Exit Core BEIS Staff: Euratom Workstream ADM-Subsistence UK,,EMPLOYEE
"Department for Business, Energy and Industrial Strategy","Department for Business, Energy and Industrial Strategy",04 August 2020,Taxi Services UK,Energy and Security - Nuclear Directorate - HSQ,"Personal Expense, Name Withheld",357246,74.00,EU Exit Core BEIS Staff: Euratom Workstream ADM-Taxi Services UK,,EMPLOYEE
"Department for Business, Energy and Industrial Strategy","Department for Business, Energy and Industrial Strategy",04 August 2020,Stationery,"Industrial Strategy, Science and Innovation - International Science and Innovation","Personal Expense, Name Withheld",357247,336.67,MF Devolved Admin-Stationery,,EMPLOYEE
"Department for Business, Energy and Industrial Strategy","Department for Business, Energy and Industrial Strategy",04 August 2020,Professional Subscriptions,"Business Sectors - Professional Business Services, Retail and Post","Personal Expense, Name Withheld",357248,138.00,MF Devolved Admin-Professional Subscriptions,,EMPLOYEE
"Department for Business, Energy and Industrial Strategy","Department for Business, Energy and Industrial Strategy",04 August 2020,Stationery,Market Frameworks - Regulation Executive,"Personal Expense, Name Withheld",357249,130.95,MF Devolved Admin-Stationery,,EMPLOYEE
"Department for Business, Energy and Industrial Strategy","Department for Business, Energy and Industrial Strategy",04 August 2020,Professional Training,Corporate Services - Human Resources,"Personal Expense, Name Withheld",357250,164.00,MF Non Devolved Admin-Professional Training,,EMPLOYEE
"Department for Business, Energy and Industrial Strategy","Department for Business, Energy and Industrial Strategy",04 August 2020,Stationery,Market Frameworks - Office for Product Safety and Standards,"Personal Expense, Name Withheld",357251,186.99,MF Devolved Admin-Stationery,,EMPLOYEE
"Department for Business, Energy and Industrial Strategy","Department for Business, Energy and Industrial Strategy",04 August 2020,EXP - Miscellaneous Expenditure - iExpenses,Market Frameworks - Office for Product Safety and Standards,"Personal Expense, Name Withheld",357252,9.99,MF Devolved Admin-EXP - Miscellaneous Expenditure - iExpenses,,EMPLOYEE
"Department for Business, Energy and Industrial Strategy","Department for Business, Energy and Industrial Strategy",04 August 2020,Stationery,"Industrial Strategy, Science and Innovation - International Science and Innovation","Personal Expense, Name Withheld",357253,57.37,MF Devolved Admin-Stationery,,EMPLOYEE
"Department for Business, Energy and Industrial Strategy","Department for Business, Energy and Industrial Strategy",04 August 2020,Subsistence UK,Market Frameworks - Office for Product Safety and Standards,"Personal Expense, Name Withheld",357254,4.22,OPSS: Innovating for Growth-Subsistence UK,,EMPLOYEE
"Department for Business, Energy and Industrial Strategy","Department for Business, Energy and Industrial Strategy",04 August 2020,Subsistence UK,Market Frameworks - Office for Product Safety and Standards,"Personal Expense, Name Withheld",357254,4.45,OPSS: Innovating for Growth-Subsistence UK,,EMPLOYEE
"Department for Business, Energy and Industrial Strategy","Department for Business, Energy and Industrial Strategy",04 August 2020,Subsistence UK,Market Frameworks - Office for Product Safety and Standards,"Personal Expense, Name Withheld",357254,15.00,OPSS: Innovating for Growth-Subsistence UK,,EMPLOYEE
"Department for Business, Energy and Industrial Strategy","Department for Business, Energy and Industrial Strategy",04 August 2020,Motor Vehicle Hire,Market Frameworks - Office for Product Safety and Standards,"Personal Expense, Name Withheld",357254,23.26,OPSS: Innovating for Growth-Motor Vehicle Hire,,EMPLOYEE
"Department for Business, Energy and Industrial Strategy","Department for Business, Energy and Industrial Strategy",04 August 2020,Stationery,Business Sectors - Cities and Local Growth,"Personal Expense, Name Withheld",357255,153.20,MF Devolved Admin-Stationery,,EMPLOYEE
"Department for Business, Energy and Industrial Strategy","Department for Business, Energy and Industrial Strategy",04 August 2020,Professional Subscriptions,"Corporate Services - Policy, Delivery and Private Office","Personal Expense, Name Withheld",357256,345.00,MF Devolved Admin-Professional Subscriptions,,EMPLOYEE
"Department for Business, Energy and Industrial Strategy","Department for Business, Energy and Industrial Strategy",04 August 2020,EXP - Miscellaneous Expenditure - iExpenses,Business Sectors - Infrastructure and Materials,"Personal Expense, Name Withheld",357259,30.00,MF Devolved Admin-EXP - Miscellaneous Expenditure - iExpenses,,EMPLOYEE
"Department for Business, Energy and Industrial Strategy","Department for Business, Energy and Industrial Strategy",04 August 2020,Stationery,"Trade, Europe and Analysis - Analysis Directorate","Personal Expense, Name Withheld",357260,42.75,MF Devolved Admin-Stationery,,EMPLOYEE
"Department for Business, Energy and Industrial Strategy","Department for Business, Energy and Industrial Strategy",04 August 2020,Stationery,"Trade, Europe and Analysis - Trade and Europe Portfolio Directorate","Personal Expense, Name Withheld",357261,58.96,EU Exit Core BEIS Staff: EU Exit Programme ADM-Stationery,,EMPLOYEE
"Department for Business, Energy and Industrial Strategy","Department for Business, Energy and Industrial Strategy",04 August 2020,Other Travel,Market Frameworks - Office for Product Safety and Standards,"Personal Expense, Name Withheld",357262,8.33,OPSS: National Capacity Organisational Cross Cutting-Other Travel,,EMPLOYEE
"Department for Business, Energy and Industrial Strategy","Department for Business, Energy and Industrial Strategy",04 August 2020,Mileage Allowance UK,Market Frameworks - Office for Product Safety and Standards,"Personal Expense, Name Withheld",357262,23.40,OPSS: National Capacity Organisational Cross Cutting-Mileage Allowance UK,,EMPLOYEE
"Department for Business, Energy and Industrial Strategy","Department for Business, Energy and Industrial Strategy",04 August 2020,Stationery,"Trade, Europe and Analysis - Trade and Investment Negotiations Goods","Personal Expense, Name Withheld",357263,274.87,EU Exit Core BEIS Staff: EU Exit Programme ADM-Stationery,,EMPLOYEE
"Department for Business, Energy and Industrial Strategy","Department for Business, Energy and Industrial Strategy",04 August 2020,Stationery,Business Sectors - Advanced Manufacturing,"Personal Expense, Name Withheld",357264,24.99,MF Devolved Admin-Stationery,,EMPLOYEE
"Department for Business, Energy and Industrial Strategy","Department for Business, Energy and Industrial Strategy",04 August 2020,Stationery,Energy and Security - Clean Power Strategy and Deployment,"Personal Expense, Name Withheld",357265,15.00,EU Exit: State Aid Regime ADM-Stationery,,EMPLOYEE
"Department for Business, Energy and Industrial Strategy","Department for Business, Energy and Industrial Strategy",04 August 2020,Stationery,"Trade, Europe and Analysis - Analysis Directorate","Personal Expense, Name Withheld",357266,175.00,MF Devolved Admin-Stationery,,EMPLOYEE
"Department for Business, Energy and Industrial Strategy","Department for Business, Energy and Industrial Strategy",04 August 2020,Stationery,Energy Transformation and Clean Growth - Magnox Enquiry,"Personal Expense, Name Withheld",357267,14.56,MF Devolved Admin-Stationery,,EMPLOYEE
"Department for Business, Energy and Industrial Strategy","Department for Business, Energy and Industrial Strategy",04 August 2020,Clarity Travel Management,"Corporate Services - Digital, Data & Technology",Mawasem Ltd T/A Clarity Travel Management,357278,85.00,Default-Clarity Travel Management,ST18 0WN,VENDOR
"Department for Business, Energy and Industrial Strategy","Department for Business, Energy and Industrial Strategy",05 August 2020,Clearing Account   - Cost - Information Technology,Market Frameworks - Office for Product Safety and Standards,JEDEX Ltd,357279,17940.00,OPSS: Primary Authority-Clearing Account   - Cost - Information Technology,KT17 3BH,VENDOR
"Department for Business, Energy and Industrial Strategy","Department for Business, Energy and Industrial Strategy",05 August 2020,Clearing Account   - Cost - Information Technology,Market Frameworks - Office for Product Safety and Standards,Kalpaitch Ltd,357283,19320.00,OPSS: Primary Authority-Clearing Account   - Cost - Information Technology,SE5 9PG,VENDOR
"Department for Business, Energy and Industrial Strategy","Department for Business, Energy and Industrial Strategy",05 August 2020,Publications,Energy and Security - Energy Development and Resilience,THE STATIONERY OFFICE LTD,357286,85.86,Offshore Environmental Permits-Publications,NR3 1QZ,VENDOR
"Department for Business, Energy and Industrial Strategy","Department for Business, Energy and Industrial Strategy",05 August 2020,Publications,Energy and Security - Energy Development and Resilience,THE STATIONERY OFFICE LTD,357287,167.40,Offshore Environmental Permits-Publications,NR3 1QZ,VENDOR
"Department for Business, Energy and Industrial Strategy","Department for Business, Energy and Industrial Strategy",05 August 2020,Capital Grants to Private Sector - Companies,Energy Transformation and Clean Growth - Science and Innovation,Energy Local CIC,357288,7204.00,Innovation Delivery SMART Systems and Integration-Capital Grants to Private Sector - Companies,NP8 1BN,VENDOR
"Department for Business, Energy and Industrial Strategy","Department for Business, Energy and Industrial Strategy",05 August 2020,R & D Current Grants to Private Sector - NPISH,"Industrial Strategy, Science and Innovation - International Science and Innovation",The Royal Society,357295,30000.00,Royal Society: 2018-2021 R&D uplift Skills-R & D Current Grants to Private Sector - NPISH,SW1Y 5AG,GRANT
"Department for Business, Energy and Industrial Strategy","Department for Business, Energy and Industrial Strategy",04 August 2020,Interest receivable - PCs - Loans (Consolidated Fund),"Business Sectors - Professional Business Services, Retail and Post",Post Office Limited,357296,-7808.99,POL: Interest on Loans-Interest receivable - PCs - Loans (Consolidated Fund),S49 1PF,VENDOR
"Department for Business, Energy and Industrial Strategy","Department for Business, Energy and Industrial Strategy",04 August 2020,Additions - Other Loans - Public Corporations,"Business Sectors - Professional Business Services, Retail and Post",Post Office Limited,357296,15000000.00,POL: Voted Loans-Additions - Other Loans - Public Corporations,S49 1PF,VENDOR
"Department for Business, Energy and Industrial Strategy","Department for Business, Energy and Industrial Strategy",05 August 2020,Current Grants To Private Sector - NPISH,Energy Transformation and Clean Growth - International Energy and Climate Finance,Climate Bonds Initiative,357297,-4775.00,International Climate Finance (ICF)-Current Grants To Private Sector - NPISH,SE1 3UD,GRANT
"Department for Business, Energy and Industrial Strategy","Department for Business, Energy and Industrial Strategy",05 August 2020,Current Grants To Private Sector - NPISH,Energy Transformation and Clean Growth - International Energy and Climate Finance,Climate Bonds Initiative,357297,9788.75,International Climate Finance (ICF)-Current Grants To Private Sector - NPISH,SE1 3UD,GRANT
"Department for Business, Energy and Industrial Strategy","Department for Business, Energy and Industrial Strategy",05 August 2020,R & D Current Grants to Private Sector - NPISH,"Industrial Strategy, Science and Innovation - International Science and Innovation",ROYAL ACADEMY OF ENGINEERING RAE,357298,335984.00,Royal Academy of Engineering: 2018-2021 R&D uplift Skills-R & D Current Grants to Private Sector - NPISH,SW1Y 5DG,VENDOR
"Department for Business, Energy and Industrial Strategy","Department for Business, Energy and Industrial Strategy",05 August 2020,R & D Current Grants to Private Sector - NPISH,"Industrial Strategy, Science and Innovation - International Science and Innovation",ROYAL ACADEMY OF ENGINEERING RAE,357299,478149.00,Royal Academy of Engineering: AS16 R&D uplift - Skills-R & D Current Grants to Private Sector - NPISH,SW1Y 5DG,VENDOR
"Department for Business, Energy and Industrial Strategy","Department for Business, Energy and Industrial Strategy",07 August 2020,ICT Outsourcing & Maintenance/Support,"Trade, Europe and Analysis - Analysis Directorate",LOGIX IT RECRUITMENT LTD,357300,12075.00,MF Devolved Admin-ICT Outsourcing & Maintenance/Support,BR1 1RW,VENDOR
"Department for Business, Energy and Industrial Strategy","Department for Business, Energy and Industrial Strategy",05 August 2020,R & D Current Grants to Private Sector - NPISH,"Industrial Strategy, Science and Innovation - International Science and Innovation",THE BRITISH ACADEMY,357303,750000.00,British Academy: 2018-2021 R&D uplift Skills-R & D Current Grants to Private Sector - NPISH,SW1Y 5AH,VENDOR
"Department for Business, Energy and Industrial Strategy","Department for Business, Energy and Industrial Strategy",05 August 2020,Outsourced Programme Management,Energy Transformation and Clean Growth - Energy Efficiency and Local,Fivium Ltd,357306,5150.00,Energy Technologies List-Outsourced Programme Management,WC2N 6AH,VENDOR
"Department for Business, Energy and Industrial Strategy","Department for Business, Energy and Industrial Strategy",06 August 2020,Recruitment Advice and Services,"Corporate Services - Policy, Delivery and Private Office",Cabinet Office,357308,4000.00,MF Devolved Admin-Recruitment Advice and Services,FY1 9JN,WGA ONLY
"Department for Business, Energy and Industrial Strategy","Department for Business, Energy and Industrial Strategy",11 August 2020,Recruitment Advice and Services,Energy and Security - Energy Development and Resilience,Cabinet Office,357309,500.00,MF Devolved Admin-Recruitment Advice and Services,FY1 9JN,WGA ONLY
"Department for Business, Energy and Industrial Strategy","Department for Business, Energy and Industrial Strategy",28 August 2020,Current Grants To Private Sector - NPISH,Business Sectors - Cities and Local Growth,Cabinet Office,357310,-1170.00,EU Exit Core BEIS Staff: No specific DExEU issue ADM-Current Grants To Private Sector - NPISH,FY5 3FW,WGA ONLY
"Department for Business, Energy and Industrial Strategy","Department for Business, Energy and Industrial Strategy",28 August 2020,Current Grants To Private Sector - NPISH,Business Sectors - Cities and Local Growth,Cabinet Office,357310,2574.00,EU Exit Core BEIS Staff: No specific DExEU issue ADM-Current Grants To Private Sector - NPISH,FY5 3FW,WGA ONLY
"Department for Business, Energy and Industrial Strategy","Department for Business, Energy and Industrial Strategy",05 August 2020,Current Grants To Local Government,Business Sectors - Cities and Local Growth,BIRMINGHAM CITY COUNCIL,357311,110965.75,Growth Hubs-Current Grants To Local Government,B7 4BL,WGA ONLY
"Department for Business, Energy and Industrial Strategy","Department for Business, Energy and Industrial Strategy",05 August 2020,Consultancy Expenditure,Vaccines Taskforce - Vaccines Taskforce,C4X Discovery Ltd,357312,10800.00,MF Devolved Admin-Consultancy Expenditure,M1 3LD,VENDOR
"Department for Business, Energy and Industrial Strategy","Department for Business, Energy and Industrial Strategy",05 August 2020,Publications,Energy and Security - Energy Development and Resilience,THE STATIONERY OFFICE LTD,357314,167.40,Offshore Environmental Permits-Publications,NR3 1QZ,VENDOR
"Department for Business, Energy and Industrial Strategy","Department for Business, Energy and Industrial Strategy",05 August 2020,Publications,Energy and Security - Energy Development and Resilience,THE STATIONERY OFFICE LTD,357316,140.22,Offshore Environmental Permits-Publications,NR3 1QZ,VENDOR
"Department for Business, Energy and Industrial Strategy","Department for Business, Energy and Industrial Strategy",07 August 2020,ICT Outsourcing & Maintenance/Support,"Trade, Europe and Analysis - Analysis Directorate",G33K Ltd,357317,12075.00,MF Devolved Admin-ICT Outsourcing & Maintenance/Support,SL1 6LG,VENDOR
"Department for Business, Energy and Industrial Strategy","Department for Business, Energy and Industrial Strategy",05 August 2020,Publications,Energy and Security - Energy Development and Resilience,THE STATIONERY OFFICE LTD,357318,31.50,Offshore Environmental Permits-Publications,NR3 1QZ,VENDOR
"Department for Business, Energy and Industrial Strategy","Department for Business, Energy and Industrial Strategy",18 August 2020,Business Rates,Energy Transformation and Clean Growth - International Energy and Climate Finance,University Of Oxford,357319,135900.75,International Climate Finance (ICF)-Business Rates,OX1 2JD,VENDOR
"Department for Business, Energy and Industrial Strategy","Department for Business, Energy and Industrial Strategy",05 August 2020,ICT Outsourcing & Maintenance/Support,"Trade, Europe and Analysis - Analysis Directorate",Code IT Recruitment Ltd,357320,13800.00,MF Devolved Admin-ICT Outsourcing & Maintenance/Support,EC2R 5BJ,VENDOR
"Department for Business, Energy and Industrial Strategy","Department for Business, Energy and Industrial Strategy",05 August 2020,R & D Current Grants to Private Sector - NPISH,Business Sectors - Advanced Manufacturing,ADVANCED PROPULSION CENTRE UK LTD,357323,33925.07,MF Devolved Admin-R & D Current Grants to Private Sector - NPISH,CV4 7AL,GRANT
"Department for Business, Energy and Industrial Strategy","Department for Business, Energy and Industrial Strategy",05 August 2020,ICT Infrastructure Specific Service,"Corporate Services - Digital, Data & Technology",Cabinet Office,357324,12080.28,MF Devolved Admin-ICT Infrastructure Specific Service,SW1A 2HQ,WGA ONLY
"Department for Business, Energy and Industrial Strategy","Department for Business, Energy and Industrial Strategy",05 August 2020,R & D Current Grants to Private Sector - NPISH,Business Sectors - Advanced Manufacturing,ADVANCED PROPULSION CENTRE UK LTD,357325,25572.34,MF Devolved Admin-R & D Current Grants to Private Sector - NPISH,CV4 7AL,GRANT
"Department for Business, Energy and Industrial Strategy","Department for Business, Energy and Industrial Strategy",05 August 2020,Leadership & People Management,Corporate Services - Human Resources,Watson Martin Ltd,357327,2595.00,MF Non Devolved Admin-Leadership & People Management,SW20 0BA,VENDOR
"Department for Business, Energy and Industrial Strategy","Department for Business, Energy and Industrial Strategy",05 August 2020,Shared Legal Services (DECC),Energy Transformation and Clean Growth - Magnox Enquiry,DLA PIPER Scotland LLP,357328,5801.00,MF Devolved Admin-Shared Legal Services (DECC),EH1 2AA,VENDOR
"Department for Business, Energy and Industrial Strategy","Department for Business, Energy and Industrial Strategy",05 August 2020,Other IT Consultancy,Market Frameworks - Labour Market,Solirius Ltd T/A Solirius Consulting,357329,3585.00,Family Related Policy Comms-Other IT Consultancy,EC3A 2AD,VENDOR
"Department for Business, Energy and Industrial Strategy","Department for Business, Energy and Industrial Strategy",05 August 2020,Other IT Consultancy,Market Frameworks - Labour Market,Solirius Ltd T/A Solirius Consulting,357329,5891.67,Family Related Policy Comms-Other IT Consultancy,EC3A 2AD,VENDOR
"Department for Business, Energy and Industrial Strategy","Department for Business, Energy and Industrial Strategy",05 August 2020,Other Professional Services,Energy and Security - Energy Development and Resilience,HARTLEY ANDERSON LTD,357384,4996.82,Environmental Surveys-Other Professional Services,AB41 8ER,VENDOR
"Department for Business, Energy and Industrial Strategy","Department for Business, Energy and Industrial Strategy",10 August 2020,NPF - Agencies - General Fund,Market Frameworks - Business Frameworks,The Insolvency Service,357414,4140935.61,Insolvency Service NB-NPF - Agencies - General Fund,WC1B 3SS,WGA ONLY
"Department for Business, Energy and Industrial Strategy","Department for Business, Energy and Industrial Strategy",05 August 2020,Contributions,Energy Transformation and Clean Growth - Science and Innovation,The Digital Accessibility Centre Ltd,357423,696.00,Non R and D Expenditure-Contributions,SA10 6FG,VENDOR
"Department for Business, Energy and Industrial Strategy","Department for Business, Energy and Industrial Strategy",05 August 2020,Current Grants To Local Government,Market Frameworks - Office for Product Safety and Standards,Kent County Council,357430,20385.35,OPSS: National Capacity Enforcement-Current Grants To Local Government,ME19 4YT,VENDOR
"Department for Business, Energy and Industrial Strategy","Department for Business, Energy and Industrial Strategy",13 August 2020,Strategy Consultancy,"Corporate Services - Digital, Data & Technology",Ernst and Young LLP,357435,85000.00,MF Devolved Admin-Strategy Consultancy,SE1 7EU,VENDOR
"Department for Business, Energy and Industrial Strategy","Department for Business, Energy and Industrial Strategy",10 August 2020,Consultancy Expenditure,Business Sectors - Business Investment,Ernst and Young LLP,357436,78452.00,MF Devolved Admin-Consultancy Expenditure,SE1 2AF,VENDOR
"Department for Business, Energy and Industrial Strategy","Department for Business, Energy and Industrial Strategy",13 August 2020,Strategy Consultancy,"Corporate Services - Digital, Data & Technology",Ernst and Young LLP,357437,115000.00,MF Devolved Admin-Strategy Consultancy,SE1 7EU,VENDOR
"Department for Business, Energy and Industrial Strategy","Department for Business, Energy and Industrial Strategy",07 August 2020,Current Grants To Central Government,"Industrial Strategy, Science and Innovation - International Science and Innovation",UKRI - Biotechnology and Biological Science Research Council,357438,5500000.00,Research Councils pension scheme (BBSRC) - Grant-Current Grants To Central Government,SN2 1UH,WGA ONLY
"Department for Business, Energy and Industrial Strategy","Department for Business, Energy and Industrial Strategy",13 August 2020,Clearing Account - Cost - Assets Under Construction - Freehold building,"Industrial Strategy, Science and Innovation - International Science and Innovation",CH2M HILL UNITED KINGDOM,357439,-85982.00,NMS AQML Buildings-Clearing Account - Cost - Assets Under Construction - Freehold building,W6 7EF,VENDOR
"Department for Business, Energy and Industrial Strategy","Department for Business, Energy and Industrial Strategy",13 August 2020,Clearing Account - Cost - Assets Under Construction - Freehold building,"Industrial Strategy, Science and Innovation - International Science and Innovation",CH2M HILL UNITED KINGDOM,357439,69503.20,NMS AQML Buildings-Clearing Account - Cost - Assets Under Construction - Freehold building,W6 7EF,VENDOR
"Department for Business, Energy and Industrial Strategy","Department for Business, Energy and Industrial Strategy",13 August 2020,Clearing Account - Cost - Assets Under Construction - Freehold building,"Industrial Strategy, Science and Innovation - International Science and Innovation",CH2M HILL UNITED KINGDOM,357439,119657.20,NMS AQML Buildings-Clearing Account - Cost - Assets Under Construction - Freehold building,W6 7EF,VENDOR
"Department for Business, Energy and Industrial Strategy","Department for Business, Energy and Industrial Strategy",13 August 2020,Clearing Account - Cost - Assets Under Construction - Freehold building,"Industrial Strategy, Science and Innovation - International Science and Innovation",CH2M HILL UNITED KINGDOM,357440,7227.60,NMS AQML Buildings-Clearing Account - Cost - Assets Under Construction - Freehold building,W6 7EF,VENDOR
"Department for Business, Energy and Industrial Strategy","Department for Business, Energy and Industrial Strategy",13 August 2020,Clearing Account - Cost - Assets Under Construction - Freehold building,"Industrial Strategy, Science and Innovation - International Science and Innovation",CH2M HILL UNITED KINGDOM,357441,3768.00,NMS AQML Buildings-Clearing Account - Cost - Assets Under Construction - Freehold building,W6 7EF,VENDOR
"Department for Business, Energy and Industrial Strategy","Department for Business, Energy and Industrial Strategy",05 August 2020,ICT Maintenance & Upkeep,"Industrial Strategy, Science and Innovation - Business Growth",BIT ZESTY LTD,357444,22080.00,DB: Queens Award-ICT Maintenance & Upkeep,N1 9PF,VENDOR
"Department for Business, Energy and Industrial Strategy","Department for Business, Energy and Industrial Strategy",12 August 2020,Clearing Account   - Cost - Computer Equipment,"Corporate Services - Digital, Data & Technology",XMA LTD,357449,16987.97,Digital Infrastructure and Maintenance-Clearing Account   - Cost - Computer Equipment,NG11 7EP,VENDOR
"Department for Business, Energy and Industrial Strategy","Department for Business, Energy and Industrial Strategy",05 August 2020,Legal Services and Advice Agency,Market Frameworks - Business Frameworks,Temple Garden Chambers,357450,1091.67,MF Devolved Admin-Legal Services and Advice Agency,EC4Y 9DA,VENDOR
"Department for Business, Energy and Industrial Strategy","Department for Business, Energy and Industrial Strategy",05 August 2020,Mileage Allowance UK,Market Frameworks - Office for Product Safety and Standards,"Personal Expense, Name Withheld",357451,153.90,OPSS: National Capacity Enforcement-Mileage Allowance UK,,EMPLOYEE
"Department for Business, Energy and Industrial Strategy","Department for Business, Energy and Industrial Strategy",05 August 2020,Stationery,Corporate Services - Communications,"Personal Expense, Name Withheld",357452,24.99,MF Devolved Admin-Stationery,,EMPLOYEE
"Department for Business, Energy and Industrial Strategy","Department for Business, Energy and Industrial Strategy",05 August 2020,Stationery,Business Sectors - Office for Life Sciences,"Personal Expense, Name Withheld",357453,126.99,MF Devolved Admin-Stationery,,EMPLOYEE
"Department for Business, Energy and Industrial Strategy","Department for Business, Energy and Industrial Strategy",05 August 2020,Stationery,"Industrial Strategy, Science and Innovation - Industrial Strategy","Personal Expense, Name Withheld",357454,74.96,MF Devolved Admin-Stationery,,EMPLOYEE
"Department for Business, Energy and Industrial Strategy","Department for Business, Energy and Industrial Strategy",05 August 2020,Stationery,Energy Transformation and Clean Growth - Industrial Energy,"Personal Expense, Name Withheld",357455,50.00,MF Devolved Admin-Stationery,,EMPLOYEE
"Department for Business, Energy and Industrial Strategy","Department for Business, Energy and Industrial Strategy",05 August 2020,Stationery,"Trade, Europe and Analysis - Analysis Directorate","Personal Expense, Name Withheld",357456,129.96,MF Devolved Admin-Stationery,,EMPLOYEE
"Department for Business, Energy and Industrial Strategy","Department for Business, Energy and Industrial Strategy",05 August 2020,Stationery,Energy and Security - Clean Power Strategy and Deployment,"Personal Expense, Name Withheld",357457,50.00,MF Devolved Admin-Stationery,,EMPLOYEE
"Department for Business, Energy and Industrial Strategy","Department for Business, Energy and Industrial Strategy",05 August 2020,EXP - Miscellaneous Expenditure - iExpenses,Business Sectors - Advanced Manufacturing,"Personal Expense, Name Withheld",357458,144.48,MF Devolved Admin-EXP - Miscellaneous Expenditure - iExpenses,,EMPLOYEE
"Department for Business, Energy and Industrial Strategy","Department for Business, Energy and Industrial Strategy",05 August 2020,Stationery,Corporate Services - Finance & Portfolio,"Personal Expense, Name Withheld",357459,14.99,MF Devolved Admin-Stationery,,EMPLOYEE
"Department for Business, Energy and Industrial Strategy","Department for Business, Energy and Industrial Strategy",05 August 2020,Rail Travel UK,"Corporate Services - Digital, Data & Technology","Personal Expense, Name Withheld",357460,34.90,MF Devolved Admin-Rail Travel UK,,EMPLOYEE
"Department for Business, Energy and Industrial Strategy","Department for Business, Energy and Industrial Strategy",05 August 2020,Other Travel,"Corporate Services - Digital, Data & Technology","Personal Expense, Name Withheld",357460,160.50,MF Devolved Admin-Other Travel,,EMPLOYEE
"Department for Business, Energy and Industrial Strategy","Department for Business, Energy and Industrial Strategy",05 August 2020,Mileage Allowance UK,"Corporate Services - Digital, Data & Technology","Personal Expense, Name Withheld",357460,247.50,MF Devolved Admin-Mileage Allowance UK,,EMPLOYEE
"Department for Business, Energy and Industrial Strategy","Department for Business, Energy and Industrial Strategy",05 August 2020,Stationery,Corporate Services - Finance & Portfolio,"Personal Expense, Name Withheld",357461,149.95,MF Devolved Admin-Stationery,,EMPLOYEE
"Department for Business, Energy and Industrial Strategy","Department for Business, Energy and Industrial Strategy",05 August 2020,EXP - Miscellaneous Expenditure - iExpenses,"Trade, Europe and Analysis - Analysis Directorate","Personal Expense, Name Withheld",357462,253.09,MF Devolved Admin-EXP - Miscellaneous Expenditure - iExpenses,,EMPLOYEE
"Department for Business, Energy and Industrial Strategy","Department for Business, Energy and Industrial Strategy",06 August 2020,R & D Outsourced Other,Energy Transformation and Clean Growth - Science and Innovation,CAMBRIDGE ARCHITECTURAL RESEARCH LTD,357467,25000.00,UK Energy Analysis-R & D Outsourced Other,CB1 2LG,GRANT
"Department for Business, Energy and Industrial Strategy","Department for Business, Energy and Industrial Strategy",06 August 2020,R & D Economic Consultancy and Research,"Trade, Europe and Analysis - Analysis Directorate",AUTICON LTD,357469,3465.00,Construction: Statistics and Other Sponsorship Activities-R & D Economic Consultancy and Research,EC2A 2EX,VENDOR
"Department for Business, Energy and Industrial Strategy","Department for Business, Energy and Industrial Strategy",06 August 2020,Consultancy Expenditure,Market Frameworks - Office for Product Safety and Standards,Personal Name Withheld,357470,2160.00,OPSS: National Capacity Organisational Cross Cutting-Consultancy Expenditure,GU22 ,VENDOR
"Department for Business, Energy and Industrial Strategy","Department for Business, Energy and Industrial Strategy",06 August 2020,R & D Research and Development Expenditure,Energy Transformation and Clean Growth - Science and Innovation,Hoare Lea LLP,357471,25000.00,INNOVATION DELIVERY BUILT ENVIRONMENT-R & D Research and Development Expenditure,BS32 4UB,VENDOR
"Department for Business, Energy and Industrial Strategy","Department for Business, Energy and Industrial Strategy",05 August 2020,Interest receivable - PCs - Loans (Consolidated Fund),"Business Sectors - Professional Business Services, Retail and Post",Post Office Limited,357472,-8014.17,POL: Interest on Loans-Interest receivable - PCs - Loans (Consolidated Fund),S49 1PF,VENDOR
"Department for Business, Energy and Industrial Strategy","Department for Business, Energy and Industrial Strategy",05 August 2020,Additions - Other Loans - Public Corporations,"Business Sectors - Professional Business Services, Retail and Post",Post Office Limited,357472,12000000.00,POL: Voted Loans-Additions - Other Loans - Public Corporations,S49 1PF,VENDOR
"Department for Business, Energy and Industrial Strategy","Department for Business, Energy and Industrial Strategy",06 August 2020,R & D Outsourced Other,Energy Transformation and Clean Growth - Science and Innovation,EDF Energy R and D UK Centre Ltd,357473,20628.08,Innovation Delivery SMART Systems and Integration-R & D Outsourced Other,W1T 4EZ,VENDOR
"Department for Business, Energy and Industrial Strategy","Department for Business, Energy and Industrial Strategy",10 August 2020,Hire of Interim Managers,"Corporate Services - Digital, Data & Technology",METHODS BUSINESS AND DIGITAL TECHNOLOGY LTD,357474,18078.19,MF Devolved Admin-Hire of Interim Managers,EC1N 8TS,VENDOR
"Department for Business, Energy and Industrial Strategy","Department for Business, Energy and Industrial Strategy",10 August 2020,Hire of Interim Managers,"Corporate Services - Digital, Data & Technology",METHODS BUSINESS AND DIGITAL TECHNOLOGY LTD,357476,17136.00,MF Devolved Admin-Hire of Interim Managers,EC1N 8TS,VENDOR
"Department for Business, Energy and Industrial Strategy","Department for Business, Energy and Industrial Strategy",06 August 2020,Other Technical Professional Services,Energy Transformation and Clean Growth - Smart Metering Implementation Programme,METHODS BUSINESS AND DIGITAL TECHNOLOGY LTD,357477,25660.80,Roll Out Of Smart Meters-Other Technical Professional Services,EC1A 4EN,VENDOR
"Department for Business, Energy and Industrial Strategy","Department for Business, Energy and Industrial Strategy",10 August 2020,Hire of Interim Managers,"Corporate Services - Digital, Data & Technology",METHODS BUSINESS AND DIGITAL TECHNOLOGY LTD,357479,14040.00,MF Devolved Admin-Hire of Interim Managers,EC1N 8TS,VENDOR
"Department for Business, Energy and Industrial Strategy","Department for Business, Energy and Industrial Strategy",06 August 2020,Legal Costs,Energy Transformation and Clean Growth - Science and Innovation,MOTT MACDONALD LTD,357483,3090.62,Energy Specialist Technical Framework-Legal Costs,CR0 2EE,VENDOR
"Department for Business, Energy and Industrial Strategy","Department for Business, Energy and Industrial Strategy",06 August 2020,Economic Consultancy & Research,Energy Transformation and Clean Growth - Clean Growth,Vivid Economics Ltd,357487,7206.00,Energy Statistics Research and Analysis-Economic Consultancy & Research,W1W 5BB,GRANT
"Department for Business, Energy and Industrial Strategy","Department for Business, Energy and Industrial Strategy",06 August 2020,Training & Skills - Consultancy,"Corporate Services - Digital, Data & Technology",Red Badger Consulting Ltd,357497,5000.00,MF Devolved Admin-Training & Skills - Consultancy,EC1Y 8AF,VENDOR
"Department for Business, Energy and Industrial Strategy","Department for Business, Energy and Industrial Strategy",12 August 2020,Enforcement,Market Frameworks - Labour Market,HM Revenue and Customs,357499,2056139.00,National Minimum Wage Enforcement-Enforcement,BN12 4XH,WGA ONLY
"Department for Business, Energy and Industrial Strategy","Department for Business, Energy and Industrial Strategy",06 August 2020,Capital Grants to Private Sector - Companies,Energy Transformation and Clean Growth - Science and Innovation,C-Capture Ltd,357502,318920.27,Innovation Delivery Industry and Carbon Capture Demonstration-Capital Grants to Private Sector - Companies,LS2 9DF,GRANT
"Department for Business, Energy and Industrial Strategy","Department for Business, Energy and Industrial Strategy",06 August 2020,R & D Outsourced Other,Energy Transformation and Clean Growth - Science and Innovation,Energypro Ltd,357503,75875.34,INNOVATION DELIVERY BUILT ENVIRONMENT-R & D Outsourced Other,NW3 5TZ,VENDOR
"Department for Business, Energy and Industrial Strategy","Department for Business, Energy and Industrial Strategy",06 August 2020,R & D Outsourced Other,Energy Transformation and Clean Growth - Science and Innovation,Hoare Lea LLP,357504,56640.00,INNOVATION DELIVERY BUILT ENVIRONMENT-R & D Outsourced Other,BS32 4UB,VENDOR
"Department for Business, Energy and Industrial Strategy","Department for Business, Energy and Industrial Strategy",06 August 2020,R & D Outsourced Other,Energy Transformation and Clean Growth - Science and Innovation,Hoare Lea LLP,357505,77053.00,INNOVATION DELIVERY BUILT ENVIRONMENT-R & D Outsourced Other,BS32 4UB,VENDOR
"Department for Business, Energy and Industrial Strategy","Department for Business, Energy and Industrial Strategy",06 August 2020,Clearing - Cost - Assets Under Construction - Internally Developed Software,Energy and Security - Energy Development and Resilience,Fivium Ltd,357506,29281.93,Oil And Gas It Environmental Portal Costs-Clearing - Cost - Assets Under Construction - Internally Developed Software,W1F 7LD,VENDOR
"Department for Business, Energy and Industrial Strategy","Department for Business, Energy and Industrial Strategy",07 August 2020,Grant-In-Aid to Arms Length Bodies,Energy Transformation and Clean Growth - Clean Growth,THE COMMITTEE ON CLIMATE CHANGE,357507,615891.00,Committee on Climate Change Grant in Aid Payments-Grant-In-Aid to Arms Length Bodies,SW1W 8NR,GRANT
"Department for Business, Energy and Industrial Strategy","Department for Business, Energy and Industrial Strategy",21 August 2020,ICT Outsourcing & Maintenance/Support,Energy and Security - Energy Development and Resilience,Oil and Gas Authority,357511,107119.55,Oil And Gas It Environmental Portal Costs-ICT Outsourcing & Maintenance/Support,WC1B 3HF,VENDOR
"Department for Business, Energy and Industrial Strategy","Department for Business, Energy and Industrial Strategy",07 August 2020,Reprographic Services,Market Frameworks - Office of Manpower Economics,Allied Publicity Services (Manchester) Ltd T/A APS Group,357514,5424.86,MF Devolved Admin-Reprographic Services,SK3 0ZP,VENDOR
"Department for Business, Energy and Industrial Strategy","Department for Business, Energy and Industrial Strategy",06 August 2020,Shared Legal Services (DECC),Energy Transformation and Clean Growth - Magnox Enquiry,Government Legal Department,357516,4130.80,MF Devolved Admin-Shared Legal Services (DECC),SW1H 9JS,VENDOR
"Department for Business, Energy and Industrial Strategy","Department for Business, Energy and Industrial Strategy",06 August 2020,Shared Legal Services (DECC),Energy Transformation and Clean Growth - Magnox Enquiry,Government Legal Department,357517,3726.90,MF Devolved Admin-Shared Legal Services (DECC),SW1H 9JS,VENDOR
"Department for Business, Energy and Industrial Strategy","Department for Business, Energy and Industrial Strategy",07 August 2020,Current Grants To Local Government,Energy Transformation and Clean Growth - Energy Efficiency and Local,MEDWAY COUNCIL,357518,45150.00,Heat Network Delivery Unit-Current Grants To Local Government,ME4 4TR,WGA ONLY
"Department for Business, Energy and Industrial Strategy","Department for Business, Energy and Industrial Strategy",06 August 2020,Other Goods/Services,"Industrial Strategy, Science and Innovation - Business Growth",Crown Prosecution Service (CPS),357519,12120.80,Small Business Commissioner-Other Goods/Services,YO1 7PX,VENDOR
"Department for Business, Energy and Industrial Strategy","Department for Business, Energy and Industrial Strategy",06 August 2020,Training And Development Expenditure,Corporate Services - Human Resources,ROYAL STATISTICAL SOCIETY,357520,102.00,MF Non Devolved Admin-Training And Development Expenditure,EC1Y 8LX,VENDOR
"Department for Business, Energy and Industrial Strategy","Department for Business, Energy and Industrial Strategy",13 August 2020,International Subscriptions,Energy Transformation and Clean Growth - International Energy and Climate Finance,OECD (ORGANISATION FOR ECONOMIC CO-OPERATION AND DEVELOPMENT),357521,1307270.22,IEA Annual Budget Contribution-International Subscriptions,,VENDOR
"Department for Business, Energy and Industrial Strategy","Department for Business, Energy and Industrial Strategy",06 August 2020,ICT Outsourcing & Maintenance/Support,"Trade, Europe and Analysis - Analysis Directorate",People Source Consulting Ltd,357522,11500.00,MF Devolved Admin-ICT Outsourcing & Maintenance/Support,BS1 6BA,VENDOR
"Department for Business, Energy and Industrial Strategy","Department for Business, Energy and Industrial Strategy",06 August 2020,Legal Services and Advice Agency,Corporate Services - Legal Services,THE SCOTLAND OFFICE,357523,2125.00,Litigation and Government Legal Department-Legal Services and Advice Agency,EH3 7HW,VENDOR
"Department for Business, Energy and Industrial Strategy","Department for Business, Energy and Industrial Strategy",06 August 2020,Legal Services and Advice Agency,Corporate Services - Legal Services,Essex Court Chambers,357524,960.00,Litigation and Government Legal Department-Legal Services and Advice Agency,WC2A 3EG,VENDOR
"Department for Business, Energy and Industrial Strategy","Department for Business, Energy and Industrial Strategy",06 August 2020,Taxi Services,"Industrial Strategy, Science and Innovation - Government Office for Science",ADDISON LEE plc,357525,30.72,MF Devolved Admin-Taxi Services,NW1 3ER,VENDOR
"Department for Business, Energy and Industrial Strategy","Department for Business, Energy and Industrial Strategy",12 August 2020,Other IT Consultancy,"Corporate Services - Digital, Data & Technology",REDCENTRIC SOLUTIONS LTD,357527,1700.00,MF Devolved Admin-Other IT Consultancy,HG3 1UG,VENDOR
"Department for Business, Energy and Industrial Strategy","Department for Business, Energy and Industrial Strategy",06 August 2020,Other Goods/Services,"Industrial Strategy, Science and Innovation - Business Growth",Crown Prosecution Service (CPS),357532,12231.95,Small Business Commissioner-Other Goods/Services,YO1 7PX,VENDOR
"Department for Business, Energy and Industrial Strategy","Department for Business, Energy and Industrial Strategy",06 August 2020,R & D Research and Development Expenditure,Energy Transformation and Clean Growth - Science and Innovation,Frazer-Nash Consultancy Ltd,357538,200000.00,Innovation Delivery Nuclear Research and Development-R & D Research and Development Expenditure,RH4 1HJ,VENDOR
"Department for Business, Energy and Industrial Strategy","Department for Business, Energy and Industrial Strategy",06 August 2020,Other Goods/Services,"Industrial Strategy, Science and Innovation - Business Growth",Crown Prosecution Service (CPS),357539,14554.56,Small Business Commissioner-Other Goods/Services,YO1 7PX,VENDOR
"Department for Business, Energy and Industrial Strategy","Department for Business, Energy and Industrial Strategy",07 August 2020,Learning and Dev - CS Skills,Corporate Services - Human Resources,INSTITUT FRANCAIS DU ROYAUME-UNI,357540,288.00,MF Non Devolved Admin-Learning and Dev - CS Skills,SW7 2JN,VENDOR
"Department for Business, Energy and Industrial Strategy","Department for Business, Energy and Industrial Strategy",07 August 2020,Recruitment Advice and Services,"Trade, Europe and Analysis - Analysis Directorate",Office for National Statistics,357547,4000.00,MF Devolved Admin-Recruitment Advice and Services,NP10 8XG,WGA ONLY
"Department for Business, Energy and Industrial Strategy","Department for Business, Energy and Industrial Strategy",06 August 2020,Accommodation & Building Management,Corporate Services - Commercial & Operations,Government Property Agency,357550,16280.94,MF Devolved Admin-Accommodation & Building Management,B2 5LS,VENDOR
"Department for Business, Energy and Industrial Strategy","Department for Business, Energy and Industrial Strategy",07 August 2020,Misc. Non Procurement Spend,Market Frameworks - Office for Product Safety and Standards,SUFFOLK COUNTY COUNCIL,357554,6000.00,OPSS: National Capacity Co-ordination-Misc. Non Procurement Spend,IP1 2DH,WGA ONLY
"Department for Business, Energy and Industrial Strategy","Department for Business, Energy and Industrial Strategy",06 August 2020,R & D Administration of Grants and Awards,"Industrial Strategy, Science and Innovation - International Science and Innovation",ACADEMY OF MEDICAL SCIENCES,357555,42000.00,Newton Fund - Supplier Academy of Medical Sciences-R & D Administration of Grants and Awards,W1B 1QH,GRANT
"Department for Business, Energy and Industrial Strategy","Department for Business, Energy and Industrial Strategy",06 August 2020,R & D Current Grants to Private Sector - NPISH,"Industrial Strategy, Science and Innovation - International Science and Innovation",ACADEMY OF MEDICAL SCIENCES,357555,217125.00,Newton Fund - Supplier Academy of Medical Sciences-R & D Current Grants to Private Sector - NPISH,W1B 1QH,GRANT
"Department for Business, Energy and Industrial Strategy","Department for Business, Energy and Industrial Strategy",10 August 2020,Hire of Interim Managers,"Corporate Services - Digital, Data & Technology",METHODS BUSINESS AND DIGITAL TECHNOLOGY LTD,357566,3120.00,MF Devolved Admin-Hire of Interim Managers,EC1N 8TS,VENDOR
"Department for Business, Energy and Industrial Strategy","Department for Business, Energy and Industrial Strategy",06 August 2020,Standard Desktop Plus Services,"Corporate Services - Digital, Data & Technology",VISIONIST LTD,357567,-324991.20,MF Devolved Admin-Standard Desktop Plus Services,BH15 2PW,VENDOR
"Department for Business, Energy and Industrial Strategy","Department for Business, Energy and Industrial Strategy",06 August 2020,Standard Desktop Plus Services,"Corporate Services - Digital, Data & Technology",VISIONIST LTD,357567,595817.20,MF Devolved Admin-Standard Desktop Plus Services,BH15 2PW,VENDOR
"Department for Business, Energy and Industrial Strategy","Department for Business, Energy and Industrial Strategy",06 August 2020,Outsourced Technical Support,"Corporate Services - Digital, Data & Technology",VISIONIST LTD,357568,306792.00,MF Devolved Admin-Outsourced Technical Support,BH15 2PW,VENDOR
"Department for Business, Energy and Industrial Strategy","Department for Business, Energy and Industrial Strategy",06 August 2020,Central Telecommunications Services,"Corporate Services - Digital, Data & Technology",VISIONIST LTD,357569,101325.00,MF Devolved Admin-Central Telecommunications Services,BH15 2PW,VENDOR
"Department for Business, Energy and Industrial Strategy","Department for Business, Energy and Industrial Strategy",06 August 2020,Application Support Service,"Corporate Services - Digital, Data & Technology",Inform Ltd T/A The Inform Team,357570,12240.00,MF Devolved Admin-Application Support Service,SE11 5SW,VENDOR
"Department for Business, Energy and Industrial Strategy","Department for Business, Energy and Industrial Strategy",06 August 2020,Training And Development Expenditure,Corporate Services - Human Resources,KPMG LLP,357571,583.00,MF Non Devolved Admin-Training And Development Expenditure,E14 5GL,VENDOR
"Department for Business, Energy and Industrial Strategy","Department for Business, Energy and Industrial Strategy",06 August 2020,Other Travel,"Industrial Strategy, Science and Innovation - Government Office for Science","Personal Expense, Name Withheld",357573,60.00,MF Devolved Admin-Other Travel,,EMPLOYEE
"Department for Business, Energy and Industrial Strategy","Department for Business, Energy and Industrial Strategy",06 August 2020,Taxi Services UK,Corporate Services - Human Resources,"Personal Expense, Name Withheld",357574,15.00,MF Devolved Admin-Taxi Services UK,,EMPLOYEE
"Department for Business, Energy and Industrial Strategy","Department for Business, Energy and Industrial Strategy",06 August 2020,Other Travel,Corporate Services - Human Resources,"Personal Expense, Name Withheld",357574,210.00,MF Devolved Admin-Other Travel,,EMPLOYEE
"Department for Business, Energy and Industrial Strategy","Department for Business, Energy and Industrial Strategy",06 August 2020,Stationery,Corporate Services - Finance & Portfolio,"Personal Expense, Name Withheld",357575,265.52,MF Devolved Admin-Stationery,,EMPLOYEE
"Department for Business, Energy and Industrial Strategy","Department for Business, Energy and Industrial Strategy",06 August 2020,Stationery,Market Frameworks - Labour Market,"Personal Expense, Name Withheld",357576,20.58,EU Exit: Labour Market Acquis ADM-Stationery,,EMPLOYEE
"Department for Business, Energy and Industrial Strategy","Department for Business, Energy and Industrial Strategy",06 August 2020,Stationery,Corporate Services - Finance & Portfolio,"Personal Expense, Name Withheld",357577,143.48,MF Devolved Admin-Stationery,,EMPLOYEE
"Department for Business, Energy and Industrial Strategy","Department for Business, Energy and Industrial Strategy",06 August 2020,Taxi Services UK,"Energy and Security - Energy Security, Networks and Markets","Personal Expense, Name Withheld",357578,261.75,MF Devolved Admin-Taxi Services UK,,EMPLOYEE
"Department for Business, Energy and Industrial Strategy","Department for Business, Energy and Industrial Strategy",06 August 2020,Stationery,Business Sectors - Cities and Local Growth,"Personal Expense, Name Withheld",357579,150.00,MF Devolved Admin-Stationery,,EMPLOYEE
"Department for Business, Energy and Industrial Strategy","Department for Business, Energy and Industrial Strategy",06 August 2020,Stationery,"Industrial Strategy, Science and Innovation - Industrial Strategy","Personal Expense, Name Withheld",357580,181.44,MF Devolved Admin-Stationery,,EMPLOYEE
"Department for Business, Energy and Industrial Strategy","Department for Business, Energy and Industrial Strategy",06 August 2020,Stationery,Energy and Security - Nuclear Directorate - SS,"Personal Expense, Name Withheld",357581,266.96,MF Devolved Admin-Stationery,,EMPLOYEE
"Department for Business, Energy and Industrial Strategy","Department for Business, Energy and Industrial Strategy",06 August 2020,Professional Subscriptions,Energy and Security - Energy Development and Resilience,"Personal Expense, Name Withheld",357582,190.00,Offshore Environmental Permits-Professional Subscriptions,,EMPLOYEE
"Department for Business, Energy and Industrial Strategy","Department for Business, Energy and Industrial Strategy",06 August 2020,Stationery,"Industrial Strategy, Science and Innovation - International Science and Innovation","Personal Expense, Name Withheld",357583,50.00,EU Exit Core BEIS Staff: Res & Inn Workstream ADM-Stationery,,EMPLOYEE
"Department for Business, Energy and Industrial Strategy","Department for Business, Energy and Industrial Strategy",06 August 2020,Stationery,"Energy and Security - Energy Security, Networks and Markets","Personal Expense, Name Withheld",357584,41.15,MF Devolved Admin-Stationery,,EMPLOYEE
"Department for Business, Energy and Industrial Strategy","Department for Business, Energy and Industrial Strategy",06 August 2020,Stationery,"Industrial Strategy, Science and Innovation - Business Growth","Personal Expense, Name Withheld",357585,294.96,MF Devolved Admin-Stationery,,EMPLOYEE
"Department for Business, Energy and Industrial Strategy","Department for Business, Energy and Industrial Strategy",06 August 2020,Stationery,"Trade, Europe and Analysis - Analysis Directorate","Personal Expense, Name Withheld",357586,15.00,MF Devolved Admin-Stationery,,EMPLOYEE
"Department for Business, Energy and Industrial Strategy","Department for Business, Energy and Industrial Strategy",07 August 2020,IT Services,"Corporate Services - Digital, Data & Technology",FDM Group Ltd,357595,7666.28,MF Devolved Admin-IT Services,SE1 2QG,VENDOR
"Department for Business, Energy and Industrial Strategy","Department for Business, Energy and Industrial Strategy",07 August 2020,ICT Outsourcing & Maintenance/Support,"Trade, Europe and Analysis - Analysis Directorate",Fordway Solutions Ltd,357598,14300.00,MF Devolved Admin-ICT Outsourcing & Maintenance/Support,GU7 1JJ,VENDOR
"Department for Business, Energy and Industrial Strategy","Department for Business, Energy and Industrial Strategy",07 August 2020,ICT Outsourcing & Maintenance/Support,"Trade, Europe and Analysis - Analysis Directorate",Fordway Solutions Ltd,357599,134360.31,MF Devolved Admin-ICT Outsourcing & Maintenance/Support,GU7 1JJ,VENDOR
